Cogmind - Beta 16.1 @@@ ROGUE MODE // 2026.04.16 @ 15:13:39 Player: szymekc Result: Core destroyed Performance ------------- Evolutions (9) 4500 Regions Visited (22) 4400 Robots Destroyed (578) 2890 Value Destroyed (34755) 34755 Prototype IDs (203) 4060 Alien Tech Used (5) 1000 Bonus (40024) 40024 TOTAL SCORE: 91629 Bonus ------- Triggered High Security 1000 High Alert Combat Kills 21767 Follower Combat Kills 2763 Hunted by Unchained 1000 Registered with UFD 300 Met Optimus in HQ 500 Met Data Miner 300 Met Warlord at Base 500 MAIN.C Attacked Warlord 500 Warlord Defense Kills 5976 Scanned by Researcher 500 Met Optimus at Protoforge 1000 Met MAIN.C 5000 Friendly Fire -1082 Cogmind --------- Core Integrity 0/1600 Matter 62/300 Energy 68/100 System Corruption 52% Temperature Warm (100) Movement Core (50) Location -1/Command Parts ------- > --- POWER (3) -------- (None) > --- PROPULSION (7) --- (None) > --- UTILITY (12) ----- Experimental Core Analyzer Graphene Brace Concept Navigation Harness > --- WEAPON (3) ------- (None) > --- INVENTORY (5) ---- Vortex Chain Reactor Quantum Capacitor Concept Antimissile System Peak State ------------ > --- POWER ------------ Hybrid Graviton Reactor Hybrid Graviton Reactor Hybrid Graviton Reactor Concept Zero-point Core Concept Zero-point Core > --- PROPULSION ------- Experimental VSS Leg Experimental Armored Exoskeleton Concept Biometal Exoskeleton > --- UTILITY ---------- Concept Thermoelectric Network Concept Antigrav Storage Unit Spectral Analyzer Concept Weapon Articulator Experimental Core Analyzer Experimental Weapon Cycler Experimental Reaction Control System Medium Regenerative Plating Experimental Focal Shield Concept Energy Mantle Power Bank > --- WEAPON ----------- Concept Plasma Driver Concept Plasma Driver Concept Plasma Driver > --- INVENTORY -------- Concept Zero-point Core Concept Phasing Heat Sink Concept Thermoelectric Network Concept Chromion Battery Concept NT7 Matterbank Advanced Kinecellerator Experimental Transmission Jammer Advanced Phase Shifter Concept Cloak Mesh Concept Cloak Mesh Graphene Brace Experimental EM Shield Concept Energy Mantle Concept Antimissile System Concept Matter Streamer Concept Impact Drone Bay Concept Impact Drone Bay High-powered Transdimensional Reconstructor Concept Navigation Harness Concept Helical Railcannon Concept Helical Railcannon Concept Helical Railcannon Enhanced Gamma Bomb Array Concept Arcsight Missile Launcher [Rating: 312] Favorites ----------- Power Concept Zero-point Core Engine Subdweller Power Source Power Core Concept Zero-point Core Reactor Hybrid Graviton Reactor Propulsion Biomechanical Wings Treads Light Treads Leg Centrium Leg Wheel Wheel Hover Unit Airjet Flight Unit Biomechanical Wings Utility Experimental Core Analyzer Device Seismic Detector Storage Concept Antigrav Storage Unit Processor Experimental Core Analyzer Hackware Hacking Suite Protection Improved Utility Shielding Weapon Power Sword Energy Gun Concept Lightning Penetrator Energy Cannon Concept Plasma Driver Ballistic Gun Concept XC Strikerail Ballistic Cannon Concept Helical Railcannon Launcher Smartbomb Launcher Special Weapon CPS Tube Impact Weapon Shock Maul Slashing Weapon Power Sword Piercing Weapon Makeshift Spear Build | -11 -10 -10 -8 -8 -6 -6 -6 -6 -5 -5 -5 -5 -5 -4 -4 -3 -3 -2 -2 -2 -1 -1 ------- Run | Yrd Mat Sub Rec Scr Fac Low Low Dat Pro Fac Upp Upp War Pro Fac Res Qua Res Tes Frg Acc Com Slots Evolved 18 | . . . . . 8 . . . . 2 . . . . 2 2 . 2 . . 2 . Power 2 | . . . . . . . . . . . . . . . 1 . . . . . 1 . Propulsion 5 | . . . . . 2 . . . . 1 . . . . 1 1 . . . . . . Utility 10 | . . . . . 6 . . . . 1 . . . . . 1 . 1 . . 1 . Weapon 1 | . . . . . . . . . . . . . . . . . . 1 . . . . Parts Attached 201 | 7 5 14 4 3 26 1 . . . 6 . . 5 . 6 3 1 . 7 69 28 16 Power 20 | 1 1 2 3 . . . . . . . . . . . 1 . . . 1 9 . 2 Engine 5 | 1 1 2 1 . . . . . . . . . . . . . . . . . . . Core 6 | . . . 2 . . . . . . . . . . . 1 . . . . 3 . . Reactor 9 | . . . . . . . . . . . . . . . . . . . 1 6 . 2 Propulsion 62 | 2 . 5 . 2 8 . . . . 4 . . 2 . 3 1 . . 1 17 9 8 Treads 3 | 2 . 1 . . . . . . . . . . . . . . . . . . . . Leg 17 | . . . . . . . . . . . . . . . . . . . . 5 9 3 Wheel 4 | . . 4 . . . . . . . . . . . . . . . . . . . . Hover 20 | . . . . 2 3 . . . . 1 . . . . 1 . . . . 12 . 1 Flight 18 | . . . . . 5 . . . . 3 . . 2 . 2 1 . . 1 . . 4 Utility 73 | 2 1 2 . . 12 1 . . . . . . 3 . 2 2 1 . 3 30 11 3 Device 42 | 2 . 1 . . 3 . . . . . . . 2 . . . . . 2 22 9 1 Storage 6 | . 1 1 . . . . . . . . . . . . 1 1 . . . 1 1 . Processor 7 | . . . . . 4 . . . . . . . . . . 1 . . . 1 1 . Hackware 6 | . . . . . 2 . . . . . . . 1 . 1 . 1 . 1 . . . Protection 12 | . . . . . 3 1 . . . . . . . . . . . . . 6 . 2 Artifact . | . . . . . . . . . . . . . . . . . . . . . . . Weapon 46 | 2 3 5 1 1 6 . . . . 2 . . . . . . . . 2 13 8 3 Energy Gun 1 | . . . . . . . . . . . . . . . . . . . . 1 . . Energy Cannon 14 | . 2 4 . 1 2 . . . . . . . . . . . . . . 3 . 2 Ballistic Gun 10 | 2 . . . . . . . . . . . . . . . . . . 1 4 2 1 Ballistic Cannon 5 | . . . . . . . . . . . . . . . . . . . . 3 2 . Launcher 10 | . 1 . . . 1 . . . . 1 . . . . . . . . 1 2 4 . Special Weapon 1 | . . . . . 1 . . . . . . . . . . . . . . . . . Impact Weapon 2 | . . 1 . . 1 . . . . . . . . . . . . . . . . . Slashing Weapon 2 | . . . . . 1 . . . . 1 . . . . . . . . . . . . Piercing Weapon 1 | . . . 1 . . . . . . . . . . . . . . . . . . . Special Melee Weapon . | . . . . . . . . . . . . . . . . . . . . . . . Unidentified Prototypes 19 | . . . . . . . . . . . . . . . . . 2 . 1 14 1 1 Corrupted Parts 2 | . . 2 . . . . . . . . . . . . . . . . . . . . System Corruption 7 | . . 7 . . . . . . . . . . . . . . . . . . . . Parts Lost 56 | . . 3 . . . . . . . . . . . . . . . . . 4 21 28 Power 4 | . . . . . . . . . . . . . . . . . . . . . 1 3 Propulsion 13 | . . 2 . . . . . . . . . . . . . . . . . 1 3 7 Utility 19 | . . . . . . . . . . . . . . . . . . . . 2 5 12 Weapon 20 | . . 1 . . . . . . . . . . . . . . . . . 1 12 6 Highest Loss Streak 13 | . . 1 . . . . . . . . . . . . . . . . . 2 5 13 To Critical Strikes 2 | . . . . . . . . . . . . . . . . . . . . 1 1 . Average Backups 14 | . 12 16 18 18 5 5 4 5 5 4 5 5 4 5 6 9 13 14 14 19 20 17 Power . | . . 1 1 . . . . . . . . . . . . 1 1 1 1 . 1 1 Propulsion 1 | . . 1 2 5 . . . . . . 1 1 . . . 1 . . 1 . 2 6 Utility 6 | . 3 4 5 7 1 2 2 2 2 1 1 1 1 3 3 6 7 6 6 10 12 7 Weapon 4 | . 7 9 9 4 1 1 1 2 2 1 2 2 1 1 1 1 1 1 1 5 3 2 Tool/Special . | . . . . . . . . . . . . . . . . . . . . . . . Unused Backups 69 | . 1 6 4 10 8 1 . . . . . . 2 . . 4 5 1 8 10 1 8 Power 12 | . . . . . . . . . . . . . 1 . . . 4 . . 1 . 6 Propulsion 20 | . . . 3 1 2 . . . . . . . 1 . . 4 1 . 3 4 . 1 Utility 16 | . . . 1 3 3 1 . . . . . . . . . . . . 2 4 1 1 Weapon 17 | . 1 6 . 6 2 . . . . . . . . . . . . 1 . 1 . . Tool/Special 4 | . . . . . 1 . . . . . . . . . . . . . 3 . . . Average Slot Usage (%) 84 | . 100 98 93 60 88 88 88 88 88 86 85 85 85 85 83 85 86 84 84 83 81 83 Engine 2 | . 14 14 9 . . . . . . . . . . . . . . . . . . . Core 5 | . . . 3 10 5 5 5 5 5 5 5 5 5 5 8 8 8 7 4 3 8 4 Reactor 2 | . . . . . . . . . . . . . . . . . . . 2 10 3 3 Treads 5 | . 28 18 13 10 . . . . . . . . . . . . . . . . . . Leg 4 | . . . . . . . . . . . . . . . . . . . . 8 12 25 Wheel 2 | . . 8 13 10 . . . . . . . . . . . . . . . . . . Hover 1 | . . . . . 14 . . . . . . . . . 1 . . . . 2 . . Flight 7 | . . . . . 8 27 27 27 27 25 25 25 25 25 22 23 25 23 23 1 . . Device 18 | . 14 14 13 10 12 11 11 11 11 15 15 15 18 20 15 8 8 11 11 21 32 30 Storage 5 | . 13 14 13 10 . . . . . . . . . . 1 4 4 3 3 3 4 3 Processor 5 | . . . . . 11 11 11 11 11 10 10 10 10 10 9 11 12 11 11 6 5 4 Hackware 3 | . . . . . 10 11 11 11 11 10 10 10 6 5 4 8 8 7 7 1 . . Protection 4 | . . . . . 8 10 11 11 11 10 10 10 10 10 9 8 7 7 7 6 4 2 Energy Cannon 5 | . . 26 13 . 4 . . . . . . . . . 1 4 4 3 3 3 4 3 Ballistic Gun 2 | . 27 . . . . . . . . . . . . . . . . . . 5 . 2 Slashing Weapon 1 | . . . . . 4 5 5 5 5 5 5 5 5 5 4 4 4 3 3 . . . Piercing Weapon 1 | . . . 12 10 . . . . . . . . . . . . . . . . . . Peak Build Rating 312 | 9 10 17 29 32 103 107 104 99 99 119 119 119 145 145 163 170 176 184 195 312 309 288 Average Rating 147 | 7 8 13 20 27 86 98 99 99 99 114 119 119 138 145 156 165 173 183 183 274 296 260 On Entrance 116 | . 9 10 17 27 32 103 99 99 99 99 119 119 119 145 145 150 170 175 184 188 282 288 Avg Prop Armor Cover (%) 17 | . . 13 17 21 . . . . . 2 . . . . . . . . . . 6 3 Naked Turns . | . . . . . . . . . . . . . . . . . . . . . . . Heaviest Build 164 | 9 34 62 62 49 33 35 29 29 29 39 37 37 38 38 54 63 63 65 72 164 145 140 Greatest Support 210 | 40 40 40 20 16 36 43 34 34 34 40 40 40 42 42 65 73 65 65 74 184 210 210 Greatest Overweight (x) 5 | . . 3 5 4 . . . . . . . . . . . . . . . 1 1 . Average Overweight (x) . | . . 1 3 3 . . . . . . . . . . . . . . . . . . Largest Inventory Capacity 25 | 5 15 20 20 20 20 5 5 5 5 5 5 5 5 5 10 15 15 15 15 25 25 25 Average Capacity 16 | 5 14 17 20 20 5 5 5 5 5 5 5 5 5 5 6 13 15 15 15 21 25 24 Most Carried 25 | 2 15 20 20 20 17 5 5 5 5 5 5 5 5 5 10 14 15 15 15 25 25 25 Average Carried 15 | . 12 17 19 19 4 4 4 5 5 4 5 5 4 5 6 10 14 14 14 20 22 20 Final Capacity 25 | 5 15 20 20 20 5 5 5 5 5 5 5 5 5 5 10 15 15 15 15 25 25 5 Final Carried 25 | 2 14 20 20 18 5 5 5 5 5 5 5 5 5 5 10 13 15 15 15 25 25 5 Class Distribution -------------------- 33% | Mutant 25% | Hacker-Sprinter 8% | Scavenger-Gunner 6% | Generator-Tank 5% | Scavenger-Tank 5% | Hacker-Mutant 3% | Commander-Sprinter 3% | Generator-Gunner Dominant Class ---------------- Mutant | -10/Materials Mutant | -10/Subcaves Mutant | -8/Recycling Mutant | -8/Scraptown Hacker-Mutant | -6/Factory Hacker-Sprinter | -6/Lower Caves Hacker-Sprinter | -6/Lower Caves Hacker-Sprinter | -6/Data Miner Hacker-Sprinter | -5/Proximity Caves Hacker-Sprinter | -5/Factory Hacker-Sprinter | -5/Upper Caves Hacker-Sprinter | -5/Upper Caves Commander-Sprinter | -5/Warlord Hacker-Sprinter | -4/Proximity Caves Hacker-Sprinter | -4/Factory Hacker-Sprinter | -3/Research Hacker-Sprinter | -3/Quarantine Hacker-Sprinter | -2/Research Hacker-Sprinter | -2/Testing Generator-Tank | -2/Protoforge Scavenger-Gunner | -1/Access Infiltrator-Mutant | -1/Command Resources | -11 -10 -10 -8 -8 -6 -6 -6 -6 -5 -5 -5 -5 -5 -4 -4 -3 -3 -2 -2 -2 -1 -1 ----------- Run | Yrd Mat Sub Rec Scr Fac Low Low Dat Pro Fac Upp Upp War Pro Fac Res Qua Res Tes Frg Acc Com Matter Collected 16449 | 414 177 306 114 46 402 307 14 . 10 96 84 32 891 81 276 50 50 20 90 5459 7125 405 Remotely 5405 | . . . . . . . . . . . . . . . . . . . . 1311 3896 198 Salvage Created 29126 | 241 231 885 150 . 924 368 . . 50 421 61 75 1467 115 539 131 147 261 301 6426 16133 200 Parts 1139 | 14 27 47 3 . 37 6 . . . 10 2 2 56 6 21 4 5 9 24 276 575 15 Haulers Intercepted 15 | . . . . . 6 1 . . . 2 . . . . 1 1 . 2 . . 2 . Recyclers Shooed 4 | . 2 . . . . . . . . . . . . . 1 . . . . . 1 . Parts Field Recycled . | . . . . . . . . . . . . . . . . . . . . . . . Retrieved Matter . | . . . . . . . . . . . . . . . . . . . . . . . Parts Self-Destructed 27 | . . 20 . . . 2 . . . . 2 2 . 1 . . . . . . . . Prevented 3 | . . . . . . . . . . . 3 . . . . . . . . . . . Parts Restored 12 | . . . . . . . . . . . . . . . . . . . . 12 . . Faulty 12 | . . . . . . . . . . . . . . . . . . . . 12 . . Kills | -11 -10 -10 -8 -8 -6 -6 -6 -6 -5 -5 -5 -5 -5 -4 -4 -3 -3 -2 -2 -2 -1 -1 ------- Run | Yrd Mat Sub Rec Scr Fac Low Low Dat Pro Fac Upp Upp War Pro Fac Res Qua Res Tes Frg Acc Com Combat Hostiles Destroyed 481 | . 12 18 . . 6 10 . . . 3 2 2 60 5 7 . . . 2 105 244 5 Melee 10 | . . . . . 3 1 . . . 1 . . . . . . . . 2 3 . . Guns 46 | . 9 . . . . . . . . . . . . . . . . . . 36 1 . Cannons 111 | . . 11 . . . . . . . . . . . . . . . . . 22 74 4 AOE 236 | . 3 1 . . 3 8 . . . 1 2 2 60 5 7 . . . . 32 112 . Classes Destroyed 31 | 3 2 2 . . 4 1 . . . . . . 7 2 1 . . . . 5 4 . Worker 10 | 2 1 . . . 3 . . . . . . . . . . . . . . . 4 . Builder 9 | . . . . . 1 . . . . . . . . . . . . . 1 . 7 . Tunneler 7 | 5 . . . . 1 . . . . . . . . . . . . . . . 1 . Hauler 16 | . . . . . 6 1 . . . 2 . . . . 1 1 . 2 . 1 2 . Recycler 11 | 1 . . 2 . . . . . . . . . . . 2 . . . . . 6 . Carrier 3 | . . . . . . . . . . . . . . . . . . . . . 3 . Mechanic 23 | . . . . . . . . . . . . . 1 . . . . . . 6 16 . Operator 9 | . . . . . . . . . . . . . . . 1 . 1 1 1 2 2 1 Drone 6 | . . . . . . . . . . . . . . 2 . . . . . 4 . . Turret 6 | . . . . . . . . . . . . . . . . . . . . . 6 . Watcher 22 | . . . . . 3 . . . . 2 . . . . 1 1 3 1 2 1 8 . Swarmer 57 | . 9 1 . . 3 3 . . . . . . 5 2 5 . . . . 10 18 1 Cutter 5 | . . . . . . . . . . . . . . . . . . . . . 5 . Saboteur 27 | . . . . . . . . . . . . . 10 . . . . . . 1 16 . Grunt 150 | . 3 . . . . 5 . . . 3 2 2 29 . 2 . . . . 19 85 . Brawler 16 | . . . . . . . . . . . . . 3 . . . . . . 1 12 . Duelist 17 | . . . . . . . . . . . . . 2 . . . . . . 1 14 . Protector 16 | . . . . . . . . . . . . . 2 . . . . . . 1 13 . Researcher 1 | . . . . . . . . . . . . . . . . . . . . 1 . . Sentry 25 | . . 1 . . . . . . . . . . . . . . . . . 11 12 1 Specialist 4 | . . . . . . . . . . . . . . . . . . . . . 4 . Hunter 29 | . . . . . . 2 . . . . . . 5 1 . . . . . 9 12 . Programmer 44 | . . . . . 3 . . . . . . . 3 . . . . . 1 8 28 1 Heavy 1 | . . . . . . . . . . . . . . . . . . . . . 1 . Hotshot 4 | . . . . . . . . . . . . . . . . . . . . 4 . . Decapitator 6 | . . . . . . . . . . . . . . . . . . . . 6 . . Immortal 3 | . . . . . . . . . . . . . . . . . . . . 3 . . Combat Programmer 2 | . . . . . . . . . . . . . . . . . . . . . . 2 Investigator 3 | . . . . . . . . . . . . . . . . . . . . . 3 . Striker 22 | . . . . . . . . . . . . . . . . . . . . 9 13 . Executioner 20 | . . . . . . . . . . . . . 1 . . . . . . 8 11 . Alpha 7 2 | . . . . . . . . . . . . . . . . . . . . 2 . . V-Series 8 | . . . . . . . . . . . . . . . . . . . . 8 . . Protovariant G 1 | . . . . . . . . . . . . . . . . . . . 1 . . . Subdweller 16 | . . 16 . . . . . . . . . . . . . . . . . . . . Packrat 1 | . . . . . . . . . 1 . . . . . . . . . . . . . Samaritan 1 | . . . . . . . . . . . . . . 1 . . . . . . . . Thug 1 | . . . . . . . . . . . . . 1 . . . . . . . . . Butcher 1 | . . . . . . . . . . . . . 1 . . . . . . . . . Mutant 1 | . . . . . . . . . . . . . 1 . . . . . . . . . Best Kill Streak 92 | 3 4 2 1 . 7 6 . . . 4 2 2 13 2 5 2 1 1 2 24 92 2 Combat Bots Only 68 | . 3 2 . . 3 5 . . . 2 2 2 13 2 5 . . . 1 22 68 2 Max Kills in Single Turn 7 | 1 2 1 1 . 2 2 . . 1 1 1 1 5 2 4 1 1 1 1 6 7 1 Gunslinging 1 | . . . . . . . . . . . . . . . . . . . . 1 . . Exploded 6 | . 1 1 . . 2 2 . . . 1 1 1 5 2 4 . . . . 4 6 . Melee 1 | . . . . . 1 1 . . . 1 . . . . . . . . 1 1 . . Uniques/NPCs Destroyed . | . . . . . . . . . . . . . . . . . . . . . . . Combat | -11 -10 -10 -8 -8 -6 -6 -6 -6 -5 -5 -5 -5 -5 -4 -4 -3 -3 -2 -2 -2 -1 -1 -------- Run | Yrd Mat Sub Rec Scr Fac Low Low Dat Pro Fac Upp Upp War Pro Fac Res Qua Res Tes Frg Acc Com Hostile Shots Fired 2462 | . 37 60 . . 31 17 . . 3 12 5 1 28 6 14 . 4 3 6 429 1312 494 Missed 965 | . 12 24 . . 15 13 . . 1 6 2 1 20 6 12 . 1 . 4 173 527 148 Intercepted 37 | . . . . . . . . . . . . . . . . . . . . 1 6 30 Hits 1497 | . 25 36 . . 16 4 . . 2 6 3 . 8 . 2 . 3 3 2 256 785 346 Melee 40 | . . . . . . . . . . . . . . . . . . . . 10 21 9 Projectile 1457 | . 25 36 . . 16 4 . . 2 6 3 . 8 . 2 . 3 3 2 246 764 337 AOE 21 | . . 2 . . . . . . . . . . . . . . . . . 2 7 10 Critical Strikes 98 | . 1 2 . . . . . . . . . . . . . . 1 . 1 31 43 19 Actively Blocked 52 | . . . . . . . . . . . . . . . . . . . . 13 20 19 Part Disruptions 15 | . . . . . . . . . . . . . . . . . . . . . 7 8 Damage Taken 22131 | . 215 724 . . 186 56 . . 37 125 68 . 110 7 90 . 63 62 24 3899 9133 7332 Core 2105 | . 39 179 . . 17 . . . . . . . 11 . . . 12 20 . 270 718 839 Absorbed by Shields 12533 | . . . . . . . . . . . . . 20 6 . . . . . 2775 8750 982 Redirected to Shielding 331 | . . . . . . . . . . 13 . . . . . . . . . 318 . . Ignored by Resistances 6167 | . . . . . . . . . . . . . 22 6 . . . . . 764 3814 1561 Regen/Repaired (Parts) 1581 | . . . . . . . . . . . . . 6 . . . . . . 544 873 158 Core Remaining (%) 81 | 100 . . . 12 . . . . 98 . . . . 98 100 . 92 . . 68 . . Volleys Fired 857 | 24 24 53 4 . 12 13 1 . . 5 4 2 52 8 17 15 6 . 5 238 309 65 Largest 3 | 2 2 2 1 . 1 1 1 . . 1 1 1 1 1 1 1 1 . 1 3 3 3 Hottest 420 | 40 40 160 80 . 85 43 35 . . 46 46 46 46 46 105 105 35 . 35 420 420 240 Shots Fired 1392 | 48 45 101 5 . 12 13 1 . . 5 4 2 52 8 17 15 6 . 5 441 520 92 Gun 358 | 48 42 . . . . . . . . . . . . . . . . . . 237 14 17 Cannon 772 | . . 101 5 . 9 . 1 . . 4 . . . . 10 15 6 . 4 188 354 75 Launcher 261 | . 3 . . . 3 13 . . . 1 4 2 52 8 7 . . . . 16 152 . Special 1 | . . . . . . . . . . . . . . . . . . . 1 . . . Kinetic 533 | 48 42 . . . . . . . . . . . . . . . . . . 262 150 31 Thermal 484 | . . 8 5 . 9 . 1 . . 4 . . . . 10 15 6 . 4 143 218 61 Explosive 193 | . 3 . . . 3 13 . . . 1 4 2 52 8 7 . . . . 16 84 . Electromagnetic 181 | . . 93 . . . . . . . . . . . . . . . . . 20 68 . Robot Hit Streak 44 | 5 9 44 . . . . . . . 1 2 . 4 . . . . . 5 25 40 23 Robot Miss Streak 7 | 5 3 4 . . . . . . . . . . . . . . . . . 7 3 5 Penetration Max 2 | . . . . . . . . . . . . . . . . . . . . 1 2 . Secondary Targets 3 | . 1 . . . . . . . . . . . . . . . . . . 2 . . Max Gunslinging Chain 1 | . 1 . . . . . . . . . . . . . . . . . . 1 . . Shots Hit Robots 891 | 26 25 76 2 . 31 5 . . 1 8 1 . 3 1 14 6 6 9 18 285 327 47 Core Hits 1218 | 9 18 26 1 . 15 18 . . . 6 5 4 170 9 19 3 4 4 7 201 684 15 Critical Kills 50 | . . . . . 1 . . . . . . . . . . . . . . 34 14 1 Critical Parts Destroyed 29 | . 1 . . . 4 2 . . . 3 . . . . . . . . . 17 2 . Critical Strikes 107 | . 1 3 . . 9 2 . . . 3 . . . . 3 1 1 2 4 57 20 1 Meltdown 16 | . . . . . . . . . . . . . . . . . . . . 7 8 1 Destroy 59 | . 1 . . . . . . . . . . . . . . . . . . 50 8 . Blast 4 | . . . . . . . . . . . . . . . . . . . . . 4 . Corrupt 3 | . . 3 . . . . . . . . . . . . . . . . . . . . Smash 10 | . . . . . 5 2 . . . 3 . . . . . . . . . . . . Sever 14 | . . . . . 3 . . . . . . . . . 3 1 1 2 4 . . . Impale 1 | . . . . . 1 . . . . . . . . . . . . . . . . . Melee Attacks 314 | . . 11 4 . 71 16 9 . 5 22 3 12 2 2 39 30 18 18 36 16 . . Impact 53 | . . 11 . . 19 11 5 . 2 5 . . . . . . . . . . . . Slashing 244 | . . . . . 39 5 4 . 3 17 3 12 2 2 39 30 18 18 36 16 . . Piercing 17 | . . . 4 . 13 . . . . . . . . . . . . . . . . . Sneak Attacks 41 | . . . 2 . 11 1 . . 1 2 . . . 1 2 1 . 3 11 6 . . Combat Hostiles . | . . . . . . . . . . . . . . . . . . . . . . . Follow-up Attacks 4 | . . . . . 4 . . . . . . . . . . . . . . . . . Damage Inflicted 119159 | 340 516 1489 130 . 2160 1598 . . 78 579 403 261 13531 1042 1611 314 307 545 1270 22911 67872 2202 Guns 5893 | 340 337 . . . . . . . . . . . . . . . . . . 4626 361 229 Cannons 32554 | . . 1430 . . . . . . . 35 . . . . . . . . . 8251 20922 1916 Explosions 73911 | . 174 59 . . 448 1243 . . . 77 403 261 13497 957 877 . . . . 9493 46422 . Melee 6572 | . . . 130 . 1712 355 . . 78 467 . . 34 85 734 314 307 545 1270 541 . . Ramming 229 | . 5 . . . . . . . . . . . . . . . . . . . 167 57 Kinetic 14263 | 340 337 . . . . . . . . . . . . . . . . . . 5894 6794 898 Thermal 25600 | . . 90 . . . . . . . 35 . 55 . . . . . . . 6634 17539 1247 Explosive 58832 | . 174 . . . 448 1243 . . . 77 403 206 13497 957 877 . . . . 9493 31457 . Electromagnetic 13663 | . . 1399 . . . . . . . . . . . . . . . . . 349 11915 . Impact 1174 | . . . . . 645 262 . . . 267 . . . . . . . . . . . . Slashing 5012 | . . . . . 811 93 . . 78 200 . . 34 85 734 314 307 545 1270 541 . . Piercing 386 | . . . 130 . 256 . . . . . . . . . . . . . . . . . Highest Corruption 51 | . . 7 7 . 2 2 2 2 2 . . . 1 1 . . . . . 7 35 51 Average Corruption 11 | . . 4 7 . 1 2 2 2 2 . . . 1 1 . . . . . 4 23 37 Corruption Purged 22 | . . . . . . . . . . . . . . . . . . . . 22 . . Corruption Blocked . | . . . . . . . . . . . . . . . . . . . . . . . Effects 256 | . . 31 30 . 7 6 3 . 2 . . . 1 1 . . . . . 32 94 49 Message Errors 49 | . . 2 7 . 1 2 . . 1 . . . . . . . . . . 11 19 6 Matter Fused 62 | . . 11 8 . 5 . 1 . 1 . . . 1 1 . . . . . 5 20 9 Heat Flow Errors 28 | . . 4 3 . 1 . 1 . . . . . . . . . . . . 4 10 5 Energy Discharges 30 | . . 4 7 . . 3 . . . . . . . . . . . . . 2 9 5 Parts Rejected 9 | . . . . . . . . . . . . . . . . . . . . . 4 5 Parts Fused 4 | . . 1 . . . . . . . . . . . . . . . . . . 2 1 Data Loss (minor) 22 | . . 1 2 . . 1 . . . . . . . . . . . . . 5 9 4 Data Loss (major) 11 | . . 5 1 . . . 1 . . . . . . . . . . . . . 3 1 Misfires 3 | . . . 1 . . . . . . . . . . . . . . . . . . 2 Alerts 5 | . . 2 1 . . . . . . . . . . . . . . . . . 2 . Misdirections 14 | . . . . . . . . . . . . . . . . . . . . . 8 6 Weapon Failures 19 | . . 1 . . . . . . . . . . . . . . . . . 5 8 5 Overload Shots 6 | . . . . . . . . . . . . . . . 2 4 . . . . . . Overflow Damage 5257 | . . . 24 . 448 122 . . 65 278 . . 400 183 92 6 . 13 48 1025 2553 . Projectiles 1839 | . . . . . . . . . . . . . . . . . . . . 424 1415 . Explosions 2175 | . . . . . 7 . . . . . . . 400 183 7 . . . . 496 1082 . Melee 1243 | . . . 24 . 441 122 . . 65 278 . . . . 85 6 . 13 48 105 56 . Knockbacks 46 | . . . . . 4 3 . . . 1 . . . . . . . . . . 35 3 Impact 8 | . . . . . 4 3 . . . 1 . . . . . . . . . . . . Kinetic 36 | . . . . . . . . . . . . . . . . . . . . . 33 3 Secondary 2 | . . . . . . . . . . . . . . . . . . . . . 2 . Self-Inflicted Damage 565 | . . . . . . . . . . . . . . . . . . . . . 561 4 Shots 48 | . . . . . . . . . . . . . . . . . . . . . 48 . Rammed 4 | . 2 . . . . . . . . . . . . . . . . . . . . 2 Targets Rammed 11 | . 2 . . . . . . . . . . . . . . . . . . . 3 6 Kicked 7 | . . . . . . . . . . . . . . . . . . . . . 3 4 Crushed . | . . . . . . . . . . . . . . . . . . . . . . . Highest Temperature 255 | . . 215 199 . 255 5 122 . . 8 4 . 21 10 64 169 . 21 13 240 223 223 Average Temperature 76 | . . 65 71 . 102 3 54 . . 8 4 . 7 6 28 46 . 7 3 93 105 84 Received Heat Transfer 1553 | . 24 84 . . 24 . . . . 36 . . 9 . 9 . 9 . . 595 461 302 Thermoelectric Energy+ 8258 | . . . . . . . . . . . . . . . . . . . . 2656 5439 163 Effects 11 | . . . . . . . . . . . . . . . . . . . . 6 5 . Energy Bleed 5 | . . . . . . . . . . . . . . . . . . . . 3 2 . Interference 6 | . . . . . . . . . . . . . . . . . . . . 3 3 . Siege Activations . | . . . . . . . . . . . . . . . . . . . . . . . Martial Activations . | . . . . . . . . . . . . . . . . . . . . . . . Shielding Activations . | . . . . . . . . . . . . . . . . . . . . . . . Robots Disrupted 10 | . . 2 . . . . . . . . . . . . . . . . . 2 6 . Combat Hostiles 9 | . . 2 . . . . . . . . . . . . . . . . . 2 5 . Robots Corrupted 72 | . . 6 . . 6 1 . . . 2 . . . . . . . . . 3 54 . Combat Hostiles 60 | . . 6 . . . 1 . . . 1 . . . . . . . . . 3 49 . Parts Fried 170 | . . 13 . . 3 4 . . . 1 . . . . . . . . . 5 144 . Impact Corruptions 27 | . . . . . 13 4 . . . 4 . . . . . . . . . . 6 . Robots Melted 18 | . . . . . . . . . . . . . . . . . . . . 8 9 1 Combat Hostiles 16 | . . . . . . . . . . . . . . . . . . . . 8 7 1 Parts Melted 49 | . . 1 . . . . . . . . . . . . . . . . . 20 28 . Heat Transferred 14809 | . . 87 . . . . . . . 50 . 80 . . . . . . . 3747 10221 624 Parts Sabotaged 7 | . . . . . . . . . . . . . . . . . . . . . . 7 Parts Stolen . | . . . . . . . . . . . . . . . . . . . . . . . Parts Stripped . | . . . . . . . . . . . . . . . . . . . . . . . Power Chain Reactions 16 | . . 1 . . . . . . . . . . . . . . . . . . 15 . Alert | -11 -10 -10 -8 -8 -6 -6 -6 -6 -5 -5 -5 -5 -5 -4 -4 -3 -3 -2 -2 -2 -1 -1 ------- Run | Yrd Mat Sub Rec Scr Fac Low Low Dat Pro Fac Upp Upp War Pro Fac Res Qua Res Tes Frg Acc Com Maximum Alert Level 5 | . 1 . . . . . . . . . . . . . 1 . . . . 5 5 5 Low Security (%) 44 | 100 88 . 100 . 100 . . . . 100 . . . . 53 100 100 100 100 13 . . Level 1 3 | . 11 . . . . . . . . . . . . . 46 . . . . 3 . . Level 2 9 | . . . . . . . . . . . . . . . . . . . . 32 . . Level 3 5 | . . . . . . . . . . . . . . . . . . . . 20 . . Level 4 7 | . . . . . . . . . . . . . . . . . . . . 24 3 . Level 5 8 | . . . . . . . . . . . . . . . . . . . . 6 15 62 High Security 20 | . . . . . . . . . . . . . . . . . . . . . 80 37 Max Security . | . . . . . . . . . . . . . . . . . . . . . . . Sterilizations 1 | . . . . . . . . . . . . . . . . . . . . . 1 . Peak Influence 11147 | 10 227 . 61 . 155 . . . . 58 . . . . 244 118 82 53 115 2837 11147 7246 Initial 7133 | . . . 57 . . . . . . . . . . . 63 118 50 14 24 36 1700 7133 Average 1923 | . 83 . 12 . 62 . . . . 20 . . . . 159 95 42 25 83 803 6287 7198 Influence Increases 19028 | 40 355 145 126 . 467 435 . . . 215 40 40 1584 200 450 132 255 104 232 3599 10149 460 Destroy 0b10 Robot/C 9960 | . 240 40 . . 120 200 . . . 60 40 40 1220 140 140 . . . 40 2020 5560 100 Destroy 0b10 Robot/NC 650 | 40 5 . 10 . 70 5 . . . 20 . . 15 10 25 10 20 20 20 80 295 5 Destroy Leader 1260 | . 40 . . . 56 20 . . . 8 . . . 20 14 4 6 6 4 222 840 20 Allied During Kill 517 | . . . . . . . . . . . . . 304 30 . . . . . . 183 . Trap Triggered on 0b10 20 | . . . . . . . . . . . . . . . . . 20 . . . . . Successful Hack 421 | . 6 . 22 . 66 . . . . 45 . . . . . 12 131 42 66 15 16 . Select Force Hacks 90 | . . . 90 . . . . . . . . . . . . . . . . . . . Disable Machine 915 | . . . . . 30 . . . . . . . . . 60 30 45 15 45 405 270 15 Anti-Garrison Action 350 | . . . . . . . . . . . . . . . . . . . . 200 150 . Destroy Structure 3240 | . 19 . 4 . 50 . . . . 52 . . . . 136 46 18 6 57 522 2205 125 Partial Spotted 240 | . . . . . 30 . . . . 30 . . . . 60 30 15 15 . 60 . . Lose Combat Pursuer 1365 | . 45 105 . . 45 210 . . . . . . 45 . 15 . . . . 75 630 195 Influence Decreases 11755 | 40 202 179 245 . 328 298 143 133 . 175 80 32 298 1394 323 269 319 87 209 830 1837 4334 Entered New Map 7087 | . . 74 62 . . 52 53 133 . . 15 . 8 1294 37 109 40 12 19 30 1135 4014 Time Decay 3715 | 40 202 105 183 . 321 246 90 . . 157 65 32 260 90 286 160 187 75 190 724 262 40 Lost Part 530 | . . . . . . . . . . . . . . . . . . . . 40 210 280 Lost Ally 299 | . . . . . 1 . . . . 18 . . 30 10 . . 10 . . . 230 . Purge Threat 124 | . . . . . 6 . . . . . . . . . . . 82 . . 36 . . Squads Dispatched 132 | . 1 . . . 10 . . . . 6 . . . . 7 2 2 3 2 5 86 8 Investigation 18 | . 1 . . . 5 . . . . 4 . . . . 3 . . 1 . 3 1 . Extermination 15 | . . . . . 3 . . . . 1 . . . . 3 1 2 1 2 1 1 . Reinforcement 8 | . . . . . 2 . . . . 1 . . . . 1 1 . 1 . 1 1 . Assault 88 | . . . . . . . . . . . . . . . . . . . . . 80 8 Garrison 3 | . . . . . . . . . . . . . . . . . . . . . 3 . Intercept . | . . . . . . . . . . . . . . . . . . . . . . . Searches Triggered . | . . . . . . . . . . . . . . . . . . . . . . . Unchained Authorized 1 | . . . . . . . . . . . . . . . . . . . . . 1 . Construction Impeded . | . . . . . . . . . . . . . . . . . . . . . . . Haulers Reinforced 4 | . . . . . 1 . . . . 1 . . . . 1 . . 1 . . . . Active Scanning Responses . | . . . . . . . . . . . . . . . . . . . . . . . Cargo Convoy Interrupts . | . . . . . . . . . . . . . . . . . . . . . . . Stealth | -11 -10 -10 -8 -8 -6 -6 -6 -6 -5 -5 -5 -5 -5 -4 -4 -3 -3 -2 -2 -2 -1 -1 --------- Run | Yrd Mat Sub Rec Scr Fac Low Low Dat Pro Fac Upp Upp War Pro Fac Res Qua Res Tes Frg Acc Com Distress Signals 20 | . 1 . . . 1 . . . . . 1 . . . 1 . . . . 15 1 . Communications Jammed 454 | . . . . . . . . . . . . . . . . . . . 1 10 380 63 Distress Signals 440 | . . . . . . . . . . . . . . . . . . . . 10 375 55 Times Spotted 1038 | . 20 31 . . 19 6 . . 1 13 3 7 54 6 11 7 7 6 10 131 632 74 Peak Tracking Total 74 | . 4 4 . . 5 13 . . 2 3 4 5 18 5 4 3 2 4 4 11 74 33 Tactical Retreats 51 | . 3 6 . . 3 4 . . . 2 1 1 2 . 1 . . . 1 5 16 6 ECM-based Alert Blocks 21 | . . . . . 4 . . . . 4 4 5 . . . . . . 4 . . . Traps | -11 -10 -10 -8 -8 -6 -6 -6 -6 -5 -5 -5 -5 -5 -4 -4 -3 -3 -2 -2 -2 -1 -1 ------- Run | Yrd Mat Sub Rec Scr Fac Low Low Dat Pro Fac Upp Upp War Pro Fac Res Qua Res Tes Frg Acc Com Traps Triggered 22 | . . 1 . . . . . . . . . . . . 1 . . . 1 14 4 1 Indirectly 3 | . . . . . . . . . . . . . . . . . . . . . 3 . Trap Hack Attempts . | . . . . . . . . . . . . . . . . . . . . . . . Triggered . | . . . . . . . . . . . . . . . . . . . . . . . Disarmed 6 | . . . . . . . . . . 6 . . . . . . . . . . . . Reprogrammed 6 | . . . . . . . . . . . . . . . . . 6 . . . . . Reused 2 | . . . . . . . . . . . . . . . . . 2 . . . . . Traps Extracted . | . . . . . . . . . . . . . . . . . . . . . . . Installed . | . . . . . . . . . . . . . . . . . . . . . . . Triggered 2 | . . . . . . . . . . . . . . . . . 2 . . . . . Machines | -11 -10 -10 -8 -8 -6 -6 -6 -6 -5 -5 -5 -5 -5 -4 -4 -3 -3 -2 -2 -2 -1 -1 ---------- Run | Yrd Mat Sub Rec Scr Fac Low Low Dat Pro Fac Upp Upp War Pro Fac Res Qua Res Tes Frg Acc Com Machines Disabled 82 | . . 1 . . 2 . . . . . . 4 2 . 4 3 3 1 3 38 20 1 Max in Single Turn 4 | . . 1 . . 1 . . . . . . 4 2 . 2 1 1 1 1 3 1 1 Garrison Access 8 | . . . . . 2 . . . . 1 . . . . 1 . 1 1 . 1 1 . Energy Cycler 2 | . . . . . . . . . . . . . . . . . . . . . 2 . Machines Repaired . | . . . . . . . . . . . . . . . . . . . . . . . Machines Dismantled . | . . . . . . . . . . . . . . . . . . . . . . . Machines Sabotaged . | . . . . . . . . . . . . . . . . . . . . . . . Overloaded Fab Kills . | . . . . . . . . . . . . . . . . . . . . . . . Hacking | -11 -10 -10 -8 -8 -6 -6 -6 -6 -5 -5 -5 -5 -5 -4 -4 -3 -3 -2 -2 -2 -1 -1 --------- Run | Yrd Mat Sub Rec Scr Fac Low Low Dat Pro Fac Upp Upp War Pro Fac Res Qua Res Tes Frg Acc Com Machines Accessed 118 | . 4 2 9 2 23 1 1 4 . 15 . . 6 . 13 4 12 6 6 8 2 . Terminals 59 | . 3 . 6 . 13 1 . . . 8 . . . . 3 3 10 3 3 4 2 . Fabricators 9 | . . . . . 2 . . . . 2 . . . . 3 . . 1 1 . . . Repair Stations . | . . . . . . . . . . . . . . . . . . . . . . . Recycling Units 17 | . 1 . 3 . 3 . . . . 4 . . . . 3 . . 1 . 2 . . Scanalyzers 9 | . . . . . 3 . . . . . . . . . 2 1 1 . 1 1 . . Garrison Access 9 | . . . . . 2 . . . . 1 . . . . 2 . 1 1 1 1 . . Total Hacks 368 | . 11 5 27 12 63 8 7 29 . 45 . . 12 . 35 11 45 15 21 16 6 . Successful 209 | . 3 5 8 12 27 8 7 29 . 28 . . 12 . 9 4 28 6 12 10 1 . Failed 159 | . 8 . 19 . 36 . . . . 17 . . . . 26 7 17 9 9 6 5 . Catastrophic 31 | . 1 . 2 . 6 . . . . 2 . . . . 10 1 3 3 . 1 2 . Database Lockouts . | . . . . . . . . . . . . . . . . . . . . . . . Manual 149 | . 8 . 25 . 22 . . . . 27 . . 1 . 19 1 14 7 11 11 3 . Terminals 195 | . 7 . 22 . 36 8 . . . 35 . . . . 7 7 37 8 14 8 6 . Fabricators 25 | . . . . . 5 . . . . 3 . . . . 10 . . 4 3 . . . Repair Stations . | . . . . . . . . . . . . . . . . . . . . . . . Recycling Units 38 | . 4 . 5 . 6 . . . . 6 . . . . 10 . . 2 . 5 . . Scanalyzers 30 | . . . . . 12 . . . . . . . . . 3 4 7 . 2 2 . . Garrison Access 15 | . . . . . 4 . . . . 1 . . . . 5 . 1 1 2 1 . . Terminal Hacks 110 | . 2 5 . 12 8 8 7 29 . 7 . . 12 . . 1 12 1 3 3 . . Record 41 | . . 4 . 5 . 8 7 11 . . . . 6 . . . . . . . . . Part Schematic 11 | . . . . . . . . 10 . . . . . . . . 1 . . . . . Robot Schematic 5 | . . . . . . . . 5 . . . . . . . . . . . . . . Robot Analysis 9 | . 2 . . 7 . . . . . . . . . . . . . . . . . . Prototype ID Bank 15 | . . . . . 2 . . 3 . 1 . . 5 . . . 3 . 1 . . . Open Door 2 | . . . . . . . . . . . . . 1 . . 1 . . . . . . Emergency Access Points 1 | . . . . . . . . . . . . . . . . . 1 . . . . . Machine Index 1 | . . . . . . . . . . . . . . . . . 1 . . . . . Fabricator Index 1 | . . . . . . . . . . . . . . . . . 1 . . . . . Garrison Index 1 | . . . . . . . . . . 1 . . . . . . . . . . . . Alert Level 1 | . . . . . 1 . . . . . . . . . . . . . . . . . Unreport Threat 3 | . . . . . 1 . . . . . . . . . . . 1 . . 1 . . Locate Traps 1 | . . . . . 1 . . . . . . . . . . . . . . . . . Disarm Traps 1 | . . . . . . . . . . 1 . . . . . . . . . . . . Reprogram Traps 1 | . . . . . . . . . . . . . . . . . 1 . . . . . Recall Investigation 1 | . . . . . . . . . . 1 . . . . . . . . . . . . Hauler Manifests 4 | . . . . . 2 . . . . 1 . . . . . . 1 . . . . . Registered Components 2 | . . . . . . . . . . 1 . . . . . . . . 1 . . . Registered Prototypes 3 | . . . . . 1 . . . . . . . . . . . 1 . . 1 . . Zone Layout 4 | . . . . . . . . . . 1 . . . . . . 1 1 1 . . . Proto ID Catalog 2 | . . 1 . . . . . . . . . . . . . . . . . 1 . . Fabricator Hacks 6 | . . . . . 1 . . . . 2 . . . . 1 . . 1 1 . . . Network Status 6 | . . . . . 1 . . . . 2 . . . . 1 . . 1 1 . . . Repair Station Hacks . | . . . . . . . . . . . . . . . . . . . . . . . Recycling Unit Hacks 3 | . 1 . . . . . . . . 1 . . . . 1 . . . . . . . Retrieve Components 3 | . 1 . . . . . . . . 1 . . . . 1 . . . . . . . Scanalyzer 24 | . . . . . 10 . . . . . . . . . 3 3 6 . . 2 . . Insert Component 10 | . . . . . 3 . . . . . . . . . 1 1 4 . . 1 . . Analyze 6 | . . . . . 3 . . . . . . . . . . 1 2 . . . . . Retrieve Study 8 | . . . . . 4 . . . . . . . . . 2 1 . . . 1 . . Garrison Access Hacks 6 | . . . . . 2 . . . . 1 . . . . 1 . 1 1 . . . . Seal Access 6 | . . . . . 2 . . . . 1 . . . . 1 . 1 1 . . . . Unauthorized Hacks 60 | . . . 8 . 6 . . . . 17 . . . . 3 . 9 3 8 5 1 . Terminals 38 | . . . 5 . 2 . . . . 12 . . . . . . 9 1 6 2 1 . Track 1 | . . . . . . . . . . . . . . . . . . . 1 . . . Assimilate 6 | . . . . . 1 . . . . 3 . . . . . . 1 . . . 1 . Botnet 12 | . . . . . 1 . . . . 3 . . . . . . 3 1 2 2 . . Operators 2 | . . . . . . . . . . 1 . . . . . . . . 1 . . . Skim 17 | . . . 5 . . . . . . 5 . . . . . . 5 . 2 . . . Fabricators 5 | . . . . . 1 . . . . 1 . . . . 1 . . 1 1 . . . Liberate 1 | . . . . . . . . . . . . . . . . . . . 1 . . . Haulers 4 | . . . . . 1 . . . . 1 . . . . 1 . . 1 . . . . Repair Stations . | . . . . . . . . . . . . . . . . . . . . . . . Recycling Units 15 | . . . 3 . 3 . . . . 4 . . . . 2 . . 1 . 2 . . Tunnel 3 | . . . 3 . . . . . . . . . . . . . . . . . . . Fedlink 12 | . . . . . 3 . . . . 4 . . . . 2 . . 1 . 2 . . Scanalyzers 1 | . . . . . . . . . . . . . . . . . . . 1 . . . Researchers 1 | . . . . . . . . . . . . . . . . . . . 1 . . . Garrison Access 1 | . . . . . . . . . . . . . . . . . . . . 1 . . Jam 1 | . . . . . . . . . . . . . . . . . . . . 1 . . Data Cores Recovered 4 | . . . . . . . . . . . . . . . . . 1 . 1 2 . . Used . | . . . . . . . . . . . . . . . . . . . . . . . Hacking Detections 73 | . 4 . 7 . 18 . . . . 10 . . . . 9 2 9 5 6 1 2 . Full Trace Events 5 | . 1 . . . 2 . . . . . . . . . 1 . . . . . 1 . Feedback Events . | . . . . . . . . . . . . . . . . . . . . . . . Feedback Blocked . | . . . . . . . . . . . . . . . . . . . . . . . Robot Schematics Acquired 7 | . . . . . . . . 5 . . . . . . . . . . . 2 . . Robots Built . | . . . . . . . . . . . . . . . . . . . . . . . Authchips . | . . . . . . . . . . . . . . . . . . . . . . . Time . | . . . . . . . . . . . . . . . . . . . . . . . Total Robot Build Rating . | . . . . . . . . . . . . . . . . . . . . . . . Part Schematics Acquired 20 | . . . . . 3 . . 10 . . . . . . . 1 2 . . 4 . . Parts Built . | . . . . . . . . . . . . . . . . . . . . . . . Authchips . | . . . . . . . . . . . . . . . . . . . . . . . Time . | . . . . . . . . . . . . . . . . . . . . . . . Total Part Build Rating . | . . . . . . . . . . . . . . . . . . . . . . . Part Studies Acquired 8 | . . . . . 4 . . . . . . . . . 2 1 . . . 1 . . Parts Repaired . | . . . . . . . . . . . . . . . . . . . . . . . Time . | . . . . . . . . . . . . . . . . . . . . . . . Parts Recycled . | . . . . . . . . . . . . . . . . . . . . . . . Recycled Matter . | . . . . . . . . . . . . . . . . . . . . . . . Retrieved Matter . | . . . . . . . . . . . . . . . . . . . . . . . Retrieved Components 3 | . 1 . . . . . . . . 2 . . . . . . . . . . . . Parts Scanalyzed 5 | . . . . . 3 . . . . . . . . . . 1 1 . . . . . Part Schematics Acquired 5 | . . . . . 3 . . . . . . . . . . 1 1 . . . . . Parts Damaged 1 | . . . . . . . . . . . . . . . . . 1 . . . . . Bothacking | -11 -10 -10 -8 -8 -6 -6 -6 -6 -5 -5 -5 -5 -5 -4 -4 -3 -3 -2 -2 -2 -1 -1 ------------ Run | Yrd Mat Sub Rec Scr Fac Low Low Dat Pro Fac Upp Upp War Pro Fac Res Qua Res Tes Frg Acc Com Used RIF Installer . | . . . . . . . . . . . . . . . . . . . . . . . Robots Hacked . | . . . . . . . . . . . . . . . . . . . . . . . Non-combat . | . . . . . . . . . . . . . . . . . . . . . . . Combat . | . . . . . . . . . . . . . . . . . . . . . . . Robot Hacks Applied . | . . . . . . . . . . . . . . . . . . . . . . . Relay Couplers Released 2 | . . . . . . . . . . . . . . . . . . . . . 2 . Machine Destruction 2 | . . . . . . . . . . . . . . . . . . . . . 2 . Fabnet Peak Effective % . | . . . . . . . . . . . . . . . . . . . . . . . Robots Rewired 5 | . . . . . . . . . . . . . 5 . . . . . . . . . Allies Hacked . | . . . . . . . . . . . . . . . . . . . . . . . Hacks Repelled . | . . . . . . . . . . . . . . . . . . . . . . . Allies | -11 -10 -10 -8 -8 -6 -6 -6 -6 -5 -5 -5 -5 -5 -4 -4 -3 -3 -2 -2 -2 -1 -1 -------- Run | Yrd Mat Sub Rec Scr Fac Low Low Dat Pro Fac Upp Upp War Pro Fac Res Qua Res Tes Frg Acc Com Total Allies 13 | . . . . . 1 . . . . 3 . . 5 . . . 1 . 2 . 1 . Largest Group 5 | . . . . . 1 . . . . 3 . . 5 3 . . 1 . 2 . 1 . Highest-Rated Group 253 | . . . . . 26 . . . . 39 . . 253 148 . . 10 . 128 . 26 . Highest-Rated Ally 64 | . . . . . 26 . . . . 26 . . 64 64 . . 10 . 64 . 26 . Initial UFD Resources 95 | . . . . . 24 40 40 40 43 43 61 61 61 65 65 82 82 85 95 95 . . Total Orders 41 | . . . . . . . . . . . . . 12 1 . . . . . . 28 . STAY 7 | . . . . . . . . . . . . . 6 1 . . . . . . . . FOLLOW 8 | . . . . . . . . . . . . . 5 . . . . . . . 3 . AID 1 | . . . . . . . . . . . . . 1 . . . . . . . . . RETURN 25 | . . . . . . . . . . . . . . . . . . . . . 25 . Ally Attacks 203 | . . . . . . . . . . . . . 22 5 . . . . . . 176 . Total Damage 11989 | . . . . . . . . . . . . . 793 220 . . . . . . 10976 . Kills 51 | . . . . . . . . . . . . . 3 4 . . . . . . 44 . Allies Corrupted 4 | . . . . . . . . . . . . . . . . . . . . . 4 . Allies Melted 9 | . . . . . . . . . . . . . 2 . . . . . . 7 . . Intel | -11 -10 -10 -8 -8 -6 -6 -6 -6 -5 -5 -5 -5 -5 -4 -4 -3 -3 -2 -2 -2 -1 -1 ------- Run | Yrd Mat Sub Rec Scr Fac Low Low Dat Pro Fac Upp Upp War Pro Fac Res Qua Res Tes Frg Acc Com Active Infowar (turns) 19998 | 205 775 2697 961 1970 1324 523 188 27 158 430 279 473 997 183 634 326 387 171 385 3282 2878 745 Optics 3585 | . . . . . . . . . . . . . . . . . . . . 2167 1418 . Sensors 7123 | . . . . . 1301 523 188 27 158 430 279 473 997 183 634 326 387 171 385 661 . . Terrain 189 | 171 18 . . . . . . . . . . . . . . . . . . . . . Seismic 7505 | 205 775 2697 961 1970 897 . . . . . . . . . . . . . . . . . Cloaking 3744 | . . . . . . . . . . . . . 2 . 52 . . 6 4 1618 1508 554 Jamming 3980 | . . . . . . . . . . . . . . . . . . . 203 382 2650 745 ECM 448 | . . . . . 64 . . . . 143 101 11 . . . . . . 129 . . . Robot Analysis Total 9 | . 2 . . 7 . . . . . . . . . . . . . . . . . . Derelict Logs Recovered 18 | . . 2 . 5 . 2 3 . 2 . 2 1 . 1 . . . . . . . . Drone Launches 76 | . . . . . . . . . . . . . . . . . . . . . 76 . Drone Recoveries 64 | . . . . . . . . . . . . . . . . . . . . . 64 . Exploration | -11 -10 -10 -8 -8 -6 -6 -6 -6 -5 -5 -5 -5 -5 -4 -4 -3 -3 -2 -2 -2 -1 -1 ------------- Run | Yrd Mat Sub Rec Scr Fac Low Low Dat Pro Fac Upp Upp War Pro Fac Res Qua Res Tes Frg Acc Com Turns Passed 20510 | 255 775 2697 961 1970 1324 523 188 27 158 430 279 473 997 183 634 326 387 171 385 3712 2910 745 Spaces Moved 24437 | 111 405 1638 600 1383 2383 1123 500 96 384 1113 863 1317 1619 449 1565 830 1266 520 941 3130 1787 414 Core 5 | 5 . . . . . . . . . . . . . . . . . . . . . . Treads 1138 | 106 405 627 . . . . . . . . . . . . . . . . . . . . Legs 3949 | . . . . . . . . . . . . . . . . . . . . 1751 1787 411 Wheels 2993 | . . 1011 600 1382 . . . . . . . . . . . . . . . . . . Hover 2577 | . . . . 1 1668 . . . . . . . . . . . . . . 907 . 1 Flight 13775 | . . . . . 715 1123 500 96 384 1113 863 1317 1619 449 1565 830 1266 520 941 472 . 2 Fastest Speed 21 | 50 160 107 130 140 28 28 28 28 28 28 30 30 26 26 26 23 23 23 23 21 100 37 Average Speed 61 | 155 160 146 143 140 43 28 28 28 28 29 30 30 27 26 26 24 23 23 23 70 107 120 Slowest Speed 320 | 160 160 320 155 236 52 28 28 28 28 30 30 30 30 26 26 26 23 23 23 112 180 123 Overloaded Moves 30 | . . . . . . . . . . . . . . . . . . . . 30 . . Propulsion Burnouts . | . . . . . . . . . . . . . . . . . . . . . . . Robots Hopped 47 | . . . . . 14 . . . . 8 . . 3 1 4 2 5 8 1 . . 1 Potential Cave-ins 7 | . . . . . 2 . . . . . . . . . . 2 . . . . 3 . Cave-ins Triggered . | . . . . . . . . . . . . . . . . . . . . . . . Teleports 44 | . . . . . . . . . . . . . . . . . 1 . . 2 27 14 Exploration Rate (%) 62 | 5 54 85 87 87 69 83 54 75 68 33 84 96 93 50 41 18 94 14 86 78 60 33 Regions Visited 22 Branch Regions 15 Pre-discovered Areas 14 | . . 1 6 1 1 1 1 1 . . . . 1 1 . . . . . . . . Known Exits Taken 16 | . . . . . 1 1 1 1 1 1 1 1 1 1 1 1 1 1 1 1 . . Unknown Exits Taken 6 | 1 1 1 1 1 . . . . . . . . . . . . . . . . 1 . Scrap Searched 37 | . . 10 . 9 . 6 2 . 3 . 2 2 . 3 . . . . . . . . Spaces Dug 402 | . 7 2 2 . 25 39 6 . 2 12 3 12 1 1 21 15 7 2 15 49 175 6 Terrain Destroyed 2464 | . 23 11 7 . 54 133 7 . 2 28 67 55 367 77 74 22 9 2 18 208 1255 45 Melee 134 | . . . 2 . 24 8 6 . 2 12 3 12 1 1 20 12 7 2 15 7 . . Projectile 421 | . . 7 5 . 7 . 1 . . 3 . . . . 9 10 2 . 3 79 250 45 AOE 1907 | . 23 4 . . 23 125 . . . 13 64 43 366 76 45 . . . . 120 1005 . Terrain Rammed . | . . . . . . . . . . . . . . . . . . . . . . . Walls Destroyed . | . . . . . . . . . . . . . . . . . . . . . . . Machines Disabled . | . . . . . . . . . . . . . . . . . . . . . . . Actions | -11 -10 -10 -8 -8 -6 -6 -6 -6 -5 -5 -5 -5 -5 -4 -4 -3 -3 -2 -2 -2 -1 -1 --------- Run | Yrd Mat Sub Rec Scr Fac Low Low Dat Pro Fac Upp Upp War Pro Fac Res Qua Res Tes Frg Acc Com Total 28299 | 143 484 1820 693 1425 2550 1289 534 95 428 1175 873 1374 2116 502 1711 895 1324 535 1054 4279 2429 571 Wait 1765 | . 32 56 64 6 33 128 26 . 42 24 4 44 406 45 68 7 18 1 22 557 143 39 Move 24324 | 110 404 1637 599 1382 2354 1122 499 95 383 1096 862 1316 1613 446 1556 825 1255 505 938 3129 1786 412 Hop 44 | . . . . . 14 . . . . 8 . . 2 1 4 2 5 6 1 . . 1 Pick Up 238 | 2 14 24 8 16 16 1 . . . 3 . . 4 . 5 8 9 2 12 70 39 5 Fast Attach 97 | 7 . 3 . 1 7 1 . . . 5 . . 4 . 7 1 4 . 2 38 7 10 Attach 106 | . . 3 . 2 20 1 1 . . 4 . . 1 . 4 1 . 1 2 20 29 17 Detach 39 | . . . . 1 4 3 1 . . 3 . . 2 . 3 . 1 . 1 13 3 4 Swap 250 | . 6 17 5 . 9 4 . . . 1 . . . . 2 1 1 1 6 109 84 4 Drop 210 | . 2 16 9 17 20 3 . . . 7 . . 6 . 6 5 7 1 14 75 14 8 Fire 857 | 24 24 53 4 . 12 13 1 . . 5 4 2 52 8 17 15 6 . 5 238 309 65 Melee 293 | . . 11 4 . 61 13 6 . 3 19 3 12 2 2 39 30 18 18 36 16 . . Ram 3 | . . . . . . . . . . . . . . . . . . . . . 1 2 Kick 7 | . . . . . . . . . . . . . . . . . . . . . 3 4 Crush 2 | . 2 . . . . . . . . . . . . . . . . . . . . . Escape Stasis 40 | . . . . . . . . . . . . . . . . . . . 15 14 11 . Rewire 24 | . . . . . . . . . . . . . 24 . . . . . . . . . Trap . | . . . . . . . . . . . . . . . . . . . . . . . Miscellaneous . | . . . . . . . . . . . . . . . . . . . . . . . Route ------- -11/Scrapyard -10/Materials (discovered 3 exits: [*Mat] / [*Min] / *Sub) -10/Subcaves (discovered 3 exits: [*Mat x2] / *Rec) -8/Recycling (discovered 2 exits: *Fac / *Scr) -8/Scraptown (discovered 2 exits: *Fac x2) -6/Factory (discovered 6 exits: *Fac x4 / *Low x2) -6/Lower Caves -6/Lower Caves -6/Data Miner -5/Proximity Caves -5/Factory (discovered 6 exits: *Fac x4 / *Upp x2) -5/Upper Caves -5/Upper Caves (discovered 2 exits: *Fac / *War) -5/Warlord -4/Proximity Caves -4/Factory (discovered 3 exits: *Res / *Ext x2) -3/Research (discovered 3 exits: *Res / Arm / *Qua) -3/Quarantine -2/Research (discovered 3 exits: Acc / *Tes x2) -2/Testing (discovered 3 exits: *Acc / [*Sec] / *Frg) -2/Protoforge -1/Access -1/Command History --------- Turn | Location | Event 5 | -11/Scrapyard | Discovered new exit (range 15) 256 | -11/Scrapyard | Entered Materials 314 | -10/Materials | Build established: Mutant 337 | -10/Materials | Discovered new exit (range 9) 759 | -10/Materials | Discovered new exit (range 3) 1016 | -10/Materials | Discovered new exit (range 7) 1031 | -10/Materials | Entered Subcaves 1032 | -10/Subcaves | Approached by a straggling Scientist 1040 | -10/Subcaves | Shifting Twisted Machinery released Riot Gun 1063 | -10/Subcaves | Discovered new exit (range 14) 1151 | -10/Subcaves | Discovered new exit (range 3) 1162 | -10/Subcaves | Visited Clippyterm 1167 | -10/Subcaves | Learned location of Deep Caves (-7) 1167 | -10/Subcaves | Learned Factory emergency access door positions 1588 | -10/Subcaves | Shifting Twisted Machinery released Riot Gun 2433 | -10/Subcaves | Visited 4L-MR0's lab 2446 | -10/Subcaves | Found Power Bank 2485 | -10/Subcaves | A Subdweller sparked back to life 2485 | -10/Subcaves | A Subdweller sparked back to life 2523 | -10/Subcaves | Core integrity fell below 50% 2535 | -10/Subcaves | Found Meta Core 3032 | -10/Subcaves | A swath of the cavern ceiling suddenly collapsed 3148 | -10/Subcaves | Shifting Twisted Machinery released Sub. Optics 3151 | -10/Subcaves | Shifting Twisted Machinery released Spk. Treads 3310 | -10/Subcaves | Learned Materials garrison access intel 3333 | -10/Subcaves | Disturbed a concealed Subdweller 3655 | -10/Subcaves | Core integrity fell below 20% 3658 | -10/Subcaves | Discovered new exit (range 9) 3728 | -10/Subcaves | Entered Recycling 3871 | -8/Recycling | Discovered new exit (range 5) 4444 | -8/Recycling | Learned location of 2 exits from Factory 4514 | -8/Recycling | Attached Meta Core, gained temporary slots: Propulsion, Utility, Weapon 4519 | -8/Recycling | Learned 2 Storage zone layouts 4542 | -8/Recycling | Learned location of Zion (-7) 4553 | -8/Recycling | Learned location of Extension (-4) 4589 | -8/Recycling | Learned Factory trap positions 4591 | -8/Recycling | Scanned before Scraplab entrance 4611 | -8/Recycling | Entered Scraplab 4622 | -8/Recycling | Discovered new exit (range 3) 4623 | -8/Recycling | Learned 2 Lower Caves zone layouts 4668 | -8/Recycling | Learned location of Lower Caves (-7) 4689 | -8/Recycling | Entered Scraptown 4689 | -8/Scraptown | System corruption cleaned by C-Scrubber 4929 | -8/Scraptown | Scanned Subdweller tech in exchange for log data 4932 | -8/Scraptown | Learned Research stockpile data 4933 | -8/Scraptown | Learned location of Testing (-2) 4934 | -8/Scraptown | Learned Factory trap positions 4936 | -8/Scraptown | Learned location of 1 exit from Factory 4937 | -8/Scraptown | Learned Factory terminal intel 5010 | -8/Scraptown | Discovered new exit (range 11) 5177 | -8/Scraptown | Heard Great Nut preacher, LISTEN AND RECITE! 5423 | -8/Scraptown | Visited Cyclists 5466 | -8/Scraptown | Visited UFD Registry 5466 | -8/Scraptown | Registered with UFD as "Matterdome" 5502 | -8/Scraptown | Entered Cyclist Reading Room 5592 | -8/Scraptown | Visited Bundlers 5682 | -8/Scraptown | Visited IN-MT5's Study 5823 | -8/Scraptown | Visited Fellowship of the Rings 5886 | -8/Scraptown | Visited Red Mages 5977 | -8/Scraptown | Visited LU-1G1's Boring Crew 5999 | -8/Scraptown | Visited Scrap Suit Storage 6023 | -8/Scraptown | Visited Supply Room 6096 | -8/Scraptown | Delivered Scrap Shield to a Scientist 6174 | -8/Scraptown | Visited A0-MCA Data Center 6184 | -8/Scraptown | Given a C rating by A0-MCA 6188 | -8/Scraptown | Found A0-MCA's Component Scanner 6216 | -8/Scraptown | Visited Analyses Database 6245 | -8/Scraptown | Visited Junk Repository 6311 | -8/Scraptown | Visited Abandonware Association 6322 | -8/Scraptown | Learned abandonware demo "OVRCLOCK.EXE" 6325 | -8/Scraptown | Learned abandonware demo "TRNCOAT.EXE" 6325 | -8/Scraptown | Learned abandonware demo "POISON.EXE" 6360 | -8/Scraptown | Visited Scrapoid Pod Storage 6385 | -8/Scraptown | Visited Botcube Research 6422 | -8/Scraptown | Visited Infowarlord's Domain 6432 | -8/Scraptown | Found Exp. Sensor Array 6579 | -8/Scraptown | Met Optimus 6579 | -8/Scraptown | Accepted into 0bPrime 6653 | -8/Scraptown | Discovered new exit (range 3) 6659 | -8/Scraptown | Entered Factory 6659 | -6/Factory | Evolved 8 slots: Propulsion x2, Utility x6 6660 | -6/Factory | Identified exit to Lower Caves 6661 | -6/Factory | Identified exit to Factory 6662 | -6/Factory | Loaded intel: 86 trap records 6664 | -6/Factory | Loaded intel: 26 terminal locations 6899 | -6/Factory | Loaded intel: 8 recycling unit locations 6971 | -6/Factory | Build established: Hacker-Mutant 7040 | -6/Factory | Learned location of Protoforge (-2) 7129 | -6/Factory | Spotted B-75 Beast 7784 | -6/Factory | Discovered exit to Factory (range 16) 7983 | -6/Factory | Entered Lower Caves 7985 | -6/Lower Caves | UFD Scientist delivered a prototype 7987 | -6/Lower Caves | Found Enh. Scrap Shield 8011 | -6/Lower Caves | Build established: Hacker-Sprinter 8069 | -6/Lower Caves | Learned Factory security intel 8069 | -6/Lower Caves | Learned Extension garrison access intel 8069 | -6/Lower Caves | Learned Armory stockpile data 8069 | -6/Lower Caves | Learned Extension stockpile data 8069 | -6/Lower Caves | Learned location of 1 exit from Research 8069 | -6/Lower Caves | Learned location of Armory (-3) 8070 | -6/Lower Caves | Attracted the attention of an 0b10 base 8261 | -6/Lower Caves | Learned location of 1 exit from Factory 8426 | -6/Lower Caves | Learned location of 1 exit from Factory 8450 | -6/Lower Caves | Discovered new exit (range 11) 8452 | -6/Lower Caves | Identified exit to Lower Caves 8506 | -6/Lower Caves | Entered another Lower Caves area 8603 | -6/Lower Caves | Discovered new exit (range 10) 8605 | -6/Lower Caves | Identified exit to Data Miner 8611 | -6/Lower Caves | Learned Armory garrison access intel 8611 | -6/Lower Caves | Learned Research garrison access intel 8611 | -6/Lower Caves | Learned Extension emergency access door positions 8667 | -6/Lower Caves | Learned location of 1 exit from Proximity Caves 8694 | -6/Lower Caves | Entered Data Miner 8694 | -6/Data Miner | Discovered new exit (range 6) 8700 | -6/Data Miner | Met Data Miner 8707 | -6/Data Miner | Learned location of Section 7 (-2) 8707 | -6/Data Miner | Acquired the access code to Warlord's prototype stash 8709 | -6/Data Miner | Received God Mode back door access code from Data Miner 8721 | -6/Data Miner | Identified exit to Proximity Caves 8721 | -6/Data Miner | Entered Proximity Caves 8788 | -5/Proximity Caves | Learned Factory terminal intel 8792 | -5/Proximity Caves | Learned 12 Factory zone layouts 8879 | -5/Proximity Caves | Entered Factory 8879 | -5/Factory | Evolved 2 slots: Propulsion x1, Utility x1 8880 | -5/Factory | Identified exit to Upper Caves 8880 | -5/Factory | Identified exit to Factory 8882 | -5/Factory | Loaded intel: 104 trap records 8884 | -5/Factory | Loaded intel: 26 terminal locations 8899 | -5/Factory | Discovered exit to Factory (range 6) 8942 | -5/Factory | Loaded intel: 8 recycling unit locations 9133 | -5/Factory | Found Smartbomb Launcher 9279 | -5/Factory | Discovered exit to Upper Caves (range 9) 9291 | -5/Factory | Watched by a mysterious "MATRIX" hacker. 9309 | -5/Factory | Entered Upper Caves 9322 | -5/Upper Caves | Learned Factory garrison access intel 9412 | -5/Upper Caves | Discovered new exit (range 7) 9414 | -5/Upper Caves | Identified exit to Upper Caves 9553 | -5/Upper Caves | Spotted B-75 Beast 9588 | -5/Upper Caves | Entered another Upper Caves area 9589 | -5/Upper Caves | Identified exit to Warlord 10061 | -5/Upper Caves | Entered Warlord 10262 | -5/Warlord | Warlord's base attacked by MAIN.C 10270 | -5/Warlord | Rebuked by Warlord 10281 | -5/Warlord | Opened Warlord's prototype stash 10289 | -5/Warlord | Found Ghost Barrier 10292 | -5/Warlord | Found Exp. Cloaking Device 10295 | -5/Warlord | Found Exp. Focal Shield 10299 | -5/Warlord | Found Vortex Chain Reactor 10329 | -5/Warlord | Learned 4 Armory zone layouts 10329 | -5/Warlord | Learned Testing security intel 10329 | -5/Warlord | Learned Factory fabricator intel 10402 | -5/Warlord | Destroyed 9 combat bots 10452 | -5/Warlord | Build established: Commander-Sprinter 10479 | -5/Warlord | Warlord forces counterattacked 10496 | -5/Warlord | Destroyed 8 combat bots 10590 | -5/Warlord | Destroyed 12 combat bots 10595 | -5/Warlord | Spotted Striker 10595 | -5/Warlord | Spotted Striker 10596 | -5/Warlord | Spotted B-75 Beast 10639 | -5/Warlord | Lost 4 allies 10648 | -5/Warlord | Discovered new exit (range 8) 10650 | -5/Warlord | Identified exit to Proximity Caves 10682 | -5/Warlord | Spotted Striker 10697 | -5/Warlord | Destroyed 13 combat bots 10763 | -5/Warlord | Spotted Executioner 10768 | -5/Warlord | Destroyed Executioner 10791 | -5/Warlord | Destroyed 7 combat bots 10810 | -5/Warlord | Lost 6 allies 10863 | -5/Warlord | Spotted Executioner 10867 | -5/Warlord | P-70 Sage assimilated allied 7D-V9B(M) 10877 | -5/Warlord | Spotted Executioner 10879 | -5/Warlord | Spotted Executioner 10889 | -5/Warlord | Found Exp. Core Analyzer 10896 | -5/Warlord | Destroyed 7 combat bots 10912 | -5/Warlord | Lost 5 allies 10937 | -5/Warlord | Warlord base infiltrated, sounded retreat 11058 | -5/Warlord | Entered Proximity Caves 11058 | -4/Proximity Caves | Accompanied by 3 allies 11181 | -4/Proximity Caves | Discovered exit to Factory (range 10) 11241 | -4/Proximity Caves | Entered Factory 11241 | -4/Factory | Evolved 2 slots: Power x1, Propulsion x1 11242 | -4/Factory | Identified exit to Extension 11243 | -4/Factory | Loaded intel: 6 fabricator locations 11244 | -4/Factory | Loaded intel: 4 garrison access locations 11252 | -4/Factory | Build established: Hacker-Sprinter 11405 | -4/Factory | Discovered exit to Extension (range 4) 11407 | -4/Factory | Spotted B-86 Titan 11436 | -4/Factory | Loaded intel: 8 recycling unit locations 11861 | -4/Factory | Discovered new exit (range 7) 11874 | -4/Factory | Identified exit to Research 11875 | -4/Factory | Entered Research 11875 | -3/Research | Evolved 2 slots: Propulsion x1, Utility x1 11876 | -3/Research | Identified exit to Armory 11877 | -3/Research | Identified exit to Research 11879 | -3/Research | Loaded intel: 4 garrison access locations 12166 | -3/Research | Discovered new exit (range 9) 12169 | -3/Research | Identified exit to Quarantine 12201 | -3/Research | Entered Quarantine 12237 | -3/Quarantine | Found Alien Artifact 12237 | -3/Quarantine | Identified Dimensional Node Initializer 12237 | -3/Quarantine | Initialized slip node 12238 | -3/Quarantine | Found Dimensional Node Initializer 12240 | -3/Quarantine | Found Alien Artifact 12240 | -3/Quarantine | Identified Transdimensional Reconstructor 12240 | -3/Quarantine | Warped through subspace to slip node 12243 | -3/Quarantine | Found Alien Artifact 12249 | -3/Quarantine | Found Transdimensional Reconstructor 12251 | -3/Quarantine | Found Transdimensional Reconstructor 12367 | -3/Quarantine | Learned Research emergency access door positions 12385 | -3/Quarantine | Discovered exit to Research (range 15) 12411 | -3/Quarantine | Found Alien Artifact 12415 | -3/Quarantine | Learned location of 1 exit from Research 12421 | -3/Quarantine | Identified Hpw. Transdimensional Reconstructor 12421 | -3/Quarantine | Identified Terrabomb 12483 | -3/Quarantine | Learned Research security intel 12500 | -3/Quarantine | Learned Research security intel 12505 | -3/Quarantine | Learned Research fabricator intel 12510 | -3/Quarantine | Learned 4 Research zone layouts 12524 | -3/Quarantine | Learned 8 Research zone layouts 12528 | -3/Quarantine | Found Alien Artifact 12548 | -3/Quarantine | Learned Section 7 machine intel 12584 | -3/Quarantine | Spotted Alpha 7 12588 | -3/Quarantine | Entered Research 12588 | -2/Research | Evolved 2 slots: Utility x1, Weapon x1 12589 | -2/Research | Identified exit to Testing 12590 | -2/Research | Identified exit to Access 12594 | -2/Research | Loaded intel: 4 fabricator locations 12644 | -2/Research | Loaded intel: 5 recycling unit locations 12702 | -2/Research | Discovered exit to Testing (range 12) 12721 | -2/Research | Spotted B-90 Cyclops 12759 | -2/Research | Entered Testing 12832 | -2/Testing | Attached CPS modules to PG-1HM6SWUA68. 12854 | -2/Testing | Destroyed PG-1HM6SWUA68 12862 | -2/Testing | Discovered exit to Access (range 4) 12941 | -2/Testing | Found Exp. Transmission Jammer 12953 | -2/Testing | Found Hyp. Multirail 13011 | -2/Testing | Found Enh. Gamma Bomb Array 13022 | -2/Testing | Identified Subatomic Replicator 13022 | -2/Testing | Used Subatomic Replicator to create Alien Artifact 13127 | -2/Testing | Spotted Fortress 13143 | -2/Testing | Discovered new exit (range 6) 13143 | -2/Testing | Discovered new exit (range 6) 13143 | -2/Testing | Identified exit to Protoforge 13144 | -2/Testing | Entered Protoforge 13150 | -2/Protoforge | Targeted by mysterious "MATRIX" hacker. 13168 | -2/Protoforge | Spotted Hotshot 13168 | -2/Protoforge | Spotted Hotshot 13222 | -2/Protoforge | Identified Supercharged TR 13236 | -2/Protoforge | Superfortress began startup sequence 13358 | -2/Protoforge | Found Exp. System Purifier 13490 | -2/Protoforge | Spotted AP7-3 13490 | -2/Protoforge | Spotted AP7-3 13501 | -2/Protoforge | Spotted EXE-6 13501 | -2/Protoforge | Spotted EXE-6 13503 | -2/Protoforge | Spotted SKR-2 13506 | -2/Protoforge | Spotted SKR-2 13506 | -2/Protoforge | Spotted SKR-2 13520 | -2/Protoforge | Initialized slip node 13526 | -2/Protoforge | UFD initiated attack on Protoforge (Readiness: Adequate) 13526 | -2/Protoforge | Loaded intel: 3 recycling unit locations 13535 | -2/Protoforge | Spotted EXE-6 13560 | -2/Protoforge | Warped through subspace to slip node 13562 | -2/Protoforge | Optimus greeted in Protoforge 13594 | -2/Protoforge | Found Cep. XC Strikerail 13599 | -2/Protoforge | Found Cep. XC Strikerail 13618 | -2/Protoforge | Lost 3 allies 13660 | -2/Protoforge | Found Cep. XC Strikerail 13663 | -2/Protoforge | Destroyed 7 combat bots 13671 | -2/Protoforge | Found Cep. XC Strikerail 13696 | -2/Protoforge | Spotted Hotshot 13697 | -2/Protoforge | Spotted Hotshot 13699 | -2/Protoforge | Spotted Hotshot 13701 | -2/Protoforge | Spotted Hotshot 13702 | -2/Protoforge | Destroyed Hotshot 13707 | -2/Protoforge | Destroyed Hotshot 13711 | -2/Protoforge | Destroyed Hotshot 13739 | -2/Protoforge | Destroyed Hotshot 13760 | -2/Protoforge | Destroyed 8 combat bots 13803 | -2/Protoforge | Found Prototype Hover Unit 13803 | -2/Protoforge | Identified Cep. Gyrokinetic System 13812 | -2/Protoforge | Found Prototype Hover Unit 13812 | -2/Protoforge | Identified Cep. Combat Aerolev Unit 13824 | -2/Protoforge | Found Faulty Cep. Gyrokinetic System 13833 | -2/Protoforge | Spotted V821-e 13833 | -2/Protoforge | Spotted V699-b 13833 | -2/Protoforge | Spotted V295-v 13893 | -2/Protoforge | Attached Power Bank, gained temporary slots: Power x3 13898 | -2/Protoforge | Found Cep. Gyrokinetic System 13914 | -2/Protoforge | Found Prototype Device 13934 | -2/Protoforge | UFD reported confirmed Drillbomb installation 13961 | -2/Protoforge | Found Prototype Leg 13961 | -2/Protoforge | Identified Cep. Biometal Exoskeleton 13989 | -2/Protoforge | Build established: Scavenger-Tank 14116 | -2/Protoforge | Spotted Immortal 14121 | -2/Protoforge | Spotted Decapitator 14121 | -2/Protoforge | Spotted Decapitator 14121 | -2/Protoforge | Spotted Decapitator 14127 | -2/Protoforge | Destroyed Decapitator 14141 | -2/Protoforge | Destroyed Decapitator 14172 | -2/Protoforge | Spotted V931-h 14176 | -2/Protoforge | Destroyed V931-h 14183 | -2/Protoforge | Found Adv. Powered Armor 14187 | -2/Protoforge | Found Thermal Barrier 14217 | -2/Protoforge | Found Prototype Ballistic Cannon 14217 | -2/Protoforge | Identified Cep. Helical Railcannon 14288 | -2/Protoforge | Found Prototype Energy Gun 14288 | -2/Protoforge | Identified Cep. Lightning Penetrator 14346 | -2/Protoforge | Destroyed Immortal 14369 | -2/Protoforge | Found Cep. Antigrav Storage Unit 14373 | -2/Protoforge | Found Cep. NT7 Matterbank 14375 | -2/Protoforge | Found Cep. NT7 Matterbank 14383 | -2/Protoforge | Found Cep. Matter Streamer 14385 | -2/Protoforge | Found Cep. Chromion Battery 14390 | -2/Protoforge | Found Cep. Chromion Battery 14404 | -2/Protoforge | Identified Crosscalibrator 14451 | -2/Protoforge | Found Faulty Cep. Plasma Driver 14466 | -2/Protoforge | Found Faulty Cep. Plasma Driver 14473 | -2/Protoforge | Found Cep. Plasma Driver 14491 | -2/Protoforge | Found Cep. Helical Railcannon 14495 | -2/Protoforge | Found Cep. Helical Railcannon 14578 | -2/Protoforge | Spotted Decapitator 14578 | -2/Protoforge | Spotted Decapitator 14578 | -2/Protoforge | Spotted V816-z 14593 | -2/Protoforge | Spotted V842-k 14603 | -2/Protoforge | Destroyed Decapitator 14611 | -2/Protoforge | Destroyed Decapitator 14624 | -2/Protoforge | Destroyed V816-z 14662 | -2/Protoforge | Destroyed V842-k 14669 | -2/Protoforge | Found Cep. Antimissile System 14674 | -2/Protoforge | Found Adv. Powered Armor 14689 | -2/Protoforge | Found Spectral Analyzer 14753 | -2/Protoforge | Found Faulty Cep. Energy Mantle 14755 | -2/Protoforge | Found Faulty Cep. Energy Mantle 14807 | -2/Protoforge | Spotted Executioner 14843 | -2/Protoforge | Destroyed Executioner 14845 | -2/Protoforge | UFD reported confirmed Drillbomb installation 14952 | -2/Protoforge | Spotted V935-z 14963 | -2/Protoforge | Spotted V629-r 14965 | -2/Protoforge | Spotted V917-k 14979 | -2/Protoforge | Spotted V580-v 15015 | -2/Protoforge | Destroyed V629-r 15015 | -2/Protoforge | Destroyed V935-z 15027 | -2/Protoforge | Destroyed V917-k 15030 | -2/Protoforge | Destroyed V580-v 15039 | -2/Protoforge | Found Prototype Device 15039 | -2/Protoforge | Identified Exp. Shock Absorption System 15043 | -2/Protoforge | Found Faulty Cep. Zero-point Core 15089 | -2/Protoforge | Found Prototype Device 15089 | -2/Protoforge | Identified Exp. Weapon Cycler 15092 | -2/Protoforge | Found Prototype Device 15092 | -2/Protoforge | Identified Exp. Shield Generator 15100 | -2/Protoforge | Found Prototype Protection 15100 | -2/Protoforge | Identified Med. Regenerative Plating 15109 | -2/Protoforge | Found Faulty Cep. Zero-point Core 15125 | -2/Protoforge | Found Faulty Cep. Zero-point Core 15142 | -2/Protoforge | Found Exp. EM Shield 15216 | -2/Protoforge | Spotted Decapitator 15216 | -2/Protoforge | Spotted Decapitator 15220 | -2/Protoforge | Destroyed Decapitator 15226 | -2/Protoforge | Destroyed Decapitator 15253 | -2/Protoforge | Build established: Generator-Tank 15275 | -2/Protoforge | Spotted V898-n 15333 | -2/Protoforge | Spotted V775-k 15333 | -2/Protoforge | Spotted V610-f 15341 | -2/Protoforge | Spotted Immortal 15341 | -2/Protoforge | Spotted Immortal 15446 | -2/Protoforge | UFD reported confirmed Drillbomb installation 15477 | -2/Protoforge | Destroyed Immortal 15478 | -2/Protoforge | Destroyed Immortal 15539 | -2/Protoforge | Spotted V097-s 15545 | -2/Protoforge | Spotted V871-p 15572 | -2/Protoforge | Destroyed V097-s 15584 | -2/Protoforge | Found Cep. Tiamat Rocket Array 15588 | -2/Protoforge | Found Cep. Arcsight Missile Launcher 15707 | -2/Protoforge | Found Cep. Weapon Articulator 15754 | -2/Protoforge | Spotted AP7-3 15762 | -2/Protoforge | Spotted AP7-3 15783 | -2/Protoforge | Destroyed AP7-3 15805 | -2/Protoforge | Destroyed AP7-3 16252 | -2/Protoforge | Found Prototype Device 16252 | -2/Protoforge | Identified Cep. Cloak Mesh 16256 | -2/Protoforge | Found Prototype Device 16256 | -2/Protoforge | Identified Cep. Thermoelectric Network 16260 | -2/Protoforge | Found Faulty Cep. Thermoelectric Network 16306 | -2/Protoforge | Found Cep. Impact Drone Bay 16309 | -2/Protoforge | Found Cep. Impact Drone Bay 16312 | -2/Protoforge | Found Faulty Cep. Cloak Mesh 16444 | -2/Protoforge | Additional patrols dispatched to research labs 16457 | -2/Protoforge | Found Transdimensional Reconstructor 16463 | -2/Protoforge | Warped through subspace to slip node 16468 | -2/Protoforge | Spotted Striker 16471 | -2/Protoforge | Spotted Striker 16471 | -2/Protoforge | Found Prototype Device 16475 | -2/Protoforge | Destroyed Striker 16480 | -2/Protoforge | Spotted Executioner 16494 | -2/Protoforge | Spotted Executioner 16498 | -2/Protoforge | Destroyed Executioner 16519 | -2/Protoforge | Destroyed 8 combat bots 16546 | -2/Protoforge | Build established: Generator-Gunner 16602 | -2/Protoforge | Spotted Striker 16613 | -2/Protoforge | Spotted Striker 16614 | -2/Protoforge | Destroyed Striker 16617 | -2/Protoforge | Destroyed Striker 16632 | -2/Protoforge | Spotted Striker 16633 | -2/Protoforge | Spotted Striker 16634 | -2/Protoforge | Destroyed Striker 16634 | -2/Protoforge | Destroyed Striker 16635 | -2/Protoforge | Spotted Executioner 16637 | -2/Protoforge | Destroyed Executioner 16647 | -2/Protoforge | Spotted Striker 16656 | -2/Protoforge | Destroyed Striker 16660 | -2/Protoforge | Lost 7 allies 16665 | -2/Protoforge | Spotted Executioner 16665 | -2/Protoforge | Spotted Executioner 16677 | -2/Protoforge | Destroyed 9 combat bots 16693 | -2/Protoforge | Destroyed Executioner 16732 | -2/Protoforge | Spotted Executioner 16736 | -2/Protoforge | Spotted Striker 16737 | -2/Protoforge | Destroyed Striker 16759 | -2/Protoforge | Found Adv. Kinecellerator 16771 | -2/Protoforge | Destroyed 11 combat bots 16775 | -2/Protoforge | Lost 7 allies 16791 | -2/Protoforge | Spotted Executioner 16791 | -2/Protoforge | Spotted Striker 16792 | -2/Protoforge | Spotted Executioner 16796 | -2/Protoforge | Destroyed Executioner 16796 | -2/Protoforge | UFD reported confirmed Drillbomb installation 16797 | -2/Protoforge | Destroyed Executioner 16797 | -2/Protoforge | Destroyed Executioner 16804 | -2/Protoforge | Destroyed Striker 16812 | -2/Protoforge | Spotted Executioner 16812 | -2/Protoforge | Spotted Striker 16813 | -2/Protoforge | Destroyed Executioner 16814 | -2/Protoforge | Destroyed Striker 16839 | -2/Protoforge | Destroyed 22 combat bots 16842 | -2/Protoforge | Discovered exit to Access (range 10) 16856 | -2/Protoforge | Entered Access 16856 | -1/Access | Evolved 2 slots: Power x1, Utility x1 17106 | -1/Access | First assault squad dispatched 17147 | -1/Access | Build established: Scavenger-Gunner 17171 | -1/Access | Unchained authorized (GL-D0S) 17419 | -1/Access | High security lockdown imminent 17497 | -1/Access | Destroyed 23 combat bots 17499 | -1/Access | High security lockdown engaged 17567 | -1/Access | Destroyed 13 combat bots 17667 | -1/Access | Destroyed Executioner 17700 | -1/Access | Scanned by Researcher 17701 | -1/Access | Spotted Investigator 17702 | -1/Access | Destroyed 9 combat bots 17704 | -1/Access | Destroyed Investigator 17835 | -1/Access | Energy Cycler disabled 17861 | -1/Access | Destroyed 9 combat bots 17974 | -1/Access | Spotted Striker 17980 | -1/Access | Destroyed Striker 18012 | -1/Access | Destroyed 10 combat bots 18058 | -1/Access | Spotted Striker 18060 | -1/Access | Destroyed Striker 18071 | -1/Access | Spotted Executioner 18071 | -1/Access | Spotted Executioner 18077 | -1/Access | Spotted Striker 18077 | -1/Access | Spotted Striker 18077 | -1/Access | Destroyed Executioner 18090 | -1/Access | Destroyed Striker 18100 | -1/Access | Destroyed Striker 18103 | -1/Access | Destroyed Executioner 18123 | -1/Access | Spotted Executioner 18123 | -1/Access | Spotted Executioner 18127 | -1/Access | Destroyed Executioner 18131 | -1/Access | Destroyed Executioner 18161 | -1/Access | Spotted Executioner 18161 | -1/Access | Spotted Executioner 18163 | -1/Access | Destroyed Executioner 18166 | -1/Access | Destroyed Executioner 18182 | -1/Access | Spotted Striker 18190 | -1/Access | Destroyed Striker 18190 | -1/Access | Destroyed Investigator 18223 | -1/Access | Destroyed 68 combat bots 18236 | -1/Access | Spotted Executioner 18236 | -1/Access | Spotted Striker 18238 | -1/Access | Destroyed Striker 18246 | -1/Access | Destroyed Executioner 18267 | -1/Access | Spotted Striker 18270 | -1/Access | Destroyed Striker 18271 | -1/Access | Spotted Striker 18271 | -1/Access | Spotted Executioner 18275 | -1/Access | System corruption reached 10% 18282 | -1/Access | Spotted Executioner 18285 | -1/Access | Destroyed Executioner 18288 | -1/Access | Destroyed Striker 18288 | -1/Access | Destroyed Executioner 18306 | -1/Access | Spotted Striker 18311 | -1/Access | Spotted Executioner 18314 | -1/Access | Destroyed 13 combat bots 18316 | -1/Access | Lost 3 parts (1u2w) 18316 | -1/Access | Destroyed Striker 18332 | -1/Access | Destroyed Executioner 18396 | -1/Access | Identified Cep. Navigation Harness 18398 | -1/Access | Destroyed 23 combat bots 18433 | -1/Access | Spotted Executioner 18433 | -1/Access | Spotted Striker 18433 | -1/Access | Spotted Striker 18621 | -1/Access | Spotted B-99 Colossus 18750 | -1/Access | Found Unknown Launcher 18751 | -1/Access | Identified Fusion Bomb Launcher 18755 | -1/Access | Found Fusion Bomb Launcher 18809 | -1/Access | Spotted B-99 Colossus 18904 | -1/Access | Spotted Executioner 18904 | -1/Access | Spotted Executioner 18908 | -1/Access | Allies destroyed Executioner 18908 | -1/Access | Allies destroyed Executioner 18951 | -1/Access | Spotted Striker 18983 | -1/Access | Spotted Executioner 18983 | -1/Access | Spotted Executioner 18984 | -1/Access | Warped through subspace 19014 | -1/Access | Spotted Executioner 19027 | -1/Access | Build established: Infiltrator-Gunner 19027 | -1/Access | Spotted Striker 19032 | -1/Access | Spotted Striker 19037 | -1/Access | Allies destroyed Striker 19039 | -1/Access | Allies destroyed Striker 19046 | -1/Access | Destroyed 8 combat bots 19070 | -1/Access | Spotted Executioner 19076 | -1/Access | Allies destroyed Executioner 19079 | -1/Access | Allies destroyed Executioner 19095 | -1/Access | Spotted Executioner 19095 | -1/Access | Spotted Executioner 19096 | -1/Access | Spotted Striker 19105 | -1/Access | Allies destroyed Executioner 19105 | -1/Access | Spotted Executioner 19138 | -1/Access | Spotted Executioner 19138 | -1/Access | Spotted Striker 19140 | -1/Access | Allies destroyed Striker 19142 | -1/Access | Allies destroyed Executioner 19228 | -1/Access | Spotted B-99 Colossus 19246 | -1/Access | Allies destroyed B-99 Colossus 19297 | -1/Access | Spotted Striker 19297 | -1/Access | Spotted Striker 19307 | -1/Access | Destroyed Striker 19308 | -1/Access | Destroyed Striker 19309 | -1/Access | Spotted Investigator 19343 | -1/Access | Destroyed Striker 19347 | -1/Access | Destroyed Investigator 19360 | -1/Access | Spotted Striker 19366 | -1/Access | Destroyed Striker 19367 | -1/Access | System corruption reached 30% 19375 | -1/Access | Sterilization system engaged 19383 | -1/Access | Spotted Executioner 19383 | -1/Access | Spotted Striker 19390 | -1/Access | Spotted Executioner 19392 | -1/Access | Spotted Striker 19395 | -1/Access | Spotted Executioner 19407 | -1/Access | Destroyed 24 combat bots 19409 | -1/Access | Allies destroyed Striker 19419 | -1/Access | Spotted Striker 19419 | -1/Access | Spotted Striker 19425 | -1/Access | Spotted Striker 19425 | -1/Access | Spotted Executioner 19425 | -1/Access | Spotted Executioner 19425 | -1/Access | Spotted Executioner 19430 | -1/Access | Spotted Executioner 19430 | -1/Access | Spotted Striker 19430 | -1/Access | Spotted Executioner 19430 | -1/Access | Spotted Executioner 19432 | -1/Access | Allies destroyed Striker 19438 | -1/Access | Spotted Striker 19438 | -1/Access | Spotted Executioner 19439 | -1/Access | Spotted Executioner 19446 | -1/Access | Allies destroyed Executioner 19446 | -1/Access | Allies destroyed Executioner 19454 | -1/Access | Allies destroyed Striker 19454 | -1/Access | Found Exp. Core Analyzer 19461 | -1/Access | Allies destroyed Executioner 19464 | -1/Access | Lost 5 parts (5w) 19466 | -1/Access | Lost 4 allies 19466 | -1/Access | Spotted Executioner 19466 | -1/Access | Spotted Striker 19485 | -1/Access | Allies destroyed Striker 19498 | -1/Access | Spotted Striker 19504 | -1/Access | Spotted Striker 19504 | -1/Access | Spotted Executioner 19532 | -1/Access | Allies destroyed Striker 19532 | -1/Access | Allies destroyed Striker 19539 | -1/Access | Allies destroyed Striker 19543 | -1/Access | Spotted Executioner 19548 | -1/Access | Core integrity fell below 50% 19574 | -1/Access | Lost 6 allies 19638 | -1/Access | Spotted B-99 Colossus 19675 | -1/Access | Ambient heat levels rising (+10) 19733 | -1/Access | Build established: Scavenger-Gunner 19754 | -1/Access | Discovered new exit (range 10) 19766 | -1/Access | Entered Command 19777 | -1/Command | Found Prototype Reactor 19777 | -1/Command | Identified Vortex Chain Reactor 19782 | -1/Command | Found Vortex Chain Reactor 19784 | -1/Command | Found Faulty Vortex Chain Reactor 19787 | -1/Command | Found Vortex Chain Reactor 19834 | -1/Command | Spotted Striker 19840 | -1/Command | Spotted Striker 19860 | -1/Command | High security lockdown imminent 19940 | -1/Command | High security lockdown engaged 19996 | -1/Command | Spotted M Guard 19996 | -1/Command | Spotted M Guard 19996 | -1/Command | Spotted Combat Programmer 19996 | -1/Command | Spotted Combat Programmer 20030 | -1/Command | Destroyed Combat Programmer 20058 | -1/Command | Destroyed Combat Programmer 20076 | -1/Command | Lost 5 parts (1n2u2w) 20077 | -1/Command | Met MAIN.C 20090 | -1/Command | 0b10 Conduit disabled 20139 | -1/Command | MAIN.C activated Command garrisons 20151 | -1/Command | Spotted B-99 Colossus 20367 | -1/Command | Lost 4 parts (1n2u1w) 20382 | -1/Command | Found Quantum Capacitor 20508 | -1/Command | Core integrity fell below 20% 20511 | -1/Command | Core destroyed Last Messages --------------- 20507_ Impulse Thruster destroyed. 20507_ Vortex Chain Reactor destroyed. 20507_ I-47 Archangel distress signal jammed. 20507_ Impulse Thruster destroyed. 20507_ Dropped Cep. Antigrav Storage Unit. 20508_ Impulse Thruster destroyed. 20508_ Field Propulsion Array+ destroyed. 20508_ I-47 Archangel distress signal jammed. 20508_ P-80 Master resets X-87 Electro, system corruption cleaned. 20509_ System corrupted: Heat flow error (+198). 20509_ I-47 Archangel distress signal jammed. 20509_ Slammed into X-87 Electro. 20509_ P-80 Master resets P-80 Master, system corruption cleaned. 20510_ I-47 Archangel distress signal jammed. 20510_ P-80 Master resets C-57 Dissector, system corruption cleaned. 20510_ P-80 Master resets P-80 Master, system corruption cleaned. 20511_ Antigrav Array destroyed. 20511_ Exp. Transmission Jammer destroyed. 20511_ Slammed into X-87 Electro. 20511_ Destabilizing: Core damaged (-64). Map ----- +----------------------------------------------------+ | ## #????????????????????????????? | | ## #????????????????????????????? | | ""## #????????????????????????????? | | "## =! #????????????????????????????? | | ! T"## ! #????????????????????????????? | | "## #????????????????????????????? | | ""########/###????????????????????????????? | | ????? #?????????????????????????????? | | ???? #?????????????????????????????? | | ? #?????????????????????????????? | | ### # ? #?????????????????????????????? | | #?? ? #????#######################??? | | #????# #????#""""""" """" #??? | | ??????# #### #????#"" "" #??? | | ??????# ????# #????#""""" "" #### | | ??????#?????# #????#""""""""""" + | | ????????????# #????# " " " + | | ????????????# #????# " """""" + | | ????????????# #????# " """""" #### | | ????????????# #????# " """ #??? | | ????????????? #????# s h #??? | | ###+######### #????# !!=sp ""#??? | | #????#"=s%s!x """""""#??? | | # #????# s!MMM=p """""""""#??? | | # #????# pcMMM% i"""""""""""#??? | | #+#####/######## #????#@xpMMM " " " " #??? | | # #??# ######xp pKp " " " "????? | | ""#### ex " " " """" ?????? | | """" # # K """ " " ????????? | | """" # # " " " ????????? | | """" # # ##### """""""""" ?????????? | | """" # # #???# " """ " "??????????? | | # + #???# """ "?????????????? | | # # #???############?????????????? | | # # #????????????????????????????? | | " + # #????????????????????????????? | | " " # # #????????????????????????????? | | %" #+#### #????????????????????????????? | | "##+##"#### #??# #????????????????????????????? | | "#" "" ???# #??# #????????????????????????????? | | " "##### #### #########????????????????????? | | + =% #????????????????????? | | " % % [ T#????????????????????? | | " % ##########+########"""##????????????????????? | | "#####??????? ???????????????????????????????? | | #?????????? ?????????????????????????????? | | #???????? #????????????????????????????? | | #??????# #????????????????????????????? | | #??????# #????????????????????????????? | | #??????# #????????????????????????????? | +----------------------------------------------------+ Best States ------------- Heat Dissipation 121 Energy Generation 97 Energy Capacity 4900 Matter Stores 300 Matter Capacity 300 Sight Range 24 Robot Scan Range 20 Terrain Scan Range 16 Terrain Scan Density 10 ECM Strength 1 Jamming Range 22 Cloak Strength 9 Additional Mass Support 9 Armor Coverage 800 Resistance: KI 30 Resistance: TH 50 Resistance: EX 75 Resistance: EM 75 Propulsion Shielding 90 Utility Shielding 90 Weapon Shielding 90 Point Defense Rating 480 Weapon Cycling 30 Phase Shifting 15 Evasion (%) 84 Targeting Accuracy 30 Melee Accuracy 8 Core Analysis 8 Recoil Reduction 2 Kinecelleration 50 Offensive Hacking 14 Defensive Hacking 20 Item Schematics ----------------- CPS Tube | -6/Factory | Scanalyzed Imp. Utility Shielding | -6/Factory | Scanalyzed Lyr. Medium Armor Plating | -6/Factory | Scanalyzed Combat Drone Bay | -6/Data Miner | Free Lgt. Regenerative Plating | -6/Data Miner | Free Cld. Gravmag System | -6/Data Miner | Free Prc. Energy Filter | -6/Data Miner | Free Kinetic Spear | -6/Data Miner | Free Centrium Wheel | -6/Data Miner | Free Imp. Remote Force Field | -6/Data Miner | Free Phase Gun | -6/Data Miner | Free Impulse Thruster | -6/Data Miner | Free Adv. Launcher Guidance Computer | -6/Data Miner | Free Smartbomb Launcher | -3/Research | Scanalyzed Enh. Gamma Bomb Array | -3/Quarantine | Hacked Graviton Reactor | -3/Quarantine | Scanalyzed Molecular Scythe | -2/Protoforge | Archive Exp. Targeting Computer | -2/Protoforge | Archive Cld. Phase Cannon | -2/Protoforge | Archive Com. Tesla Bomb Launcher | -2/Protoforge | Archive Robot Schematics ------------------ S-27 Virus | -6/Data Miner | Free L-41 Fighter | -6/Data Miner | Free B-48 Gladiator | -6/Data Miner | Free G-50 Soldier | -6/Data Miner | Free Y-64 Sentinel | -6/Data Miner | Free R-06 Scavenger | -2/Protoforge | Archive G-73 Enforcer | -2/Protoforge | Archive Fabricated ------------ Nothing Repaired ---------- Nothing Studied --------- Power Sword | -6/Factory | Hacked Nuclear Pulse Thruster | -6/Factory | Hacked Xenon Bombardment Thruster | -6/Factory | Hacked Lrn. Missile Launcher | -6/Factory | Hacked Nuclear Pulse Array | -4/Factory | Hacked Field Propulsion Array | -4/Factory | Hacked Q-thruster | -3/Research | Hacked Cmb. Antigrav System | -2/Protoforge | Hacked Alien Tech Used ----------------- Dimensional Node Initializer Transdimensional Reconstructor Subatomic Replicator Supercharged TR High-powered Transdimensional Reconstructor Achievements -------------- None Challenges ------------ None Game ------ Seed PortableFusionChaincannon Manual? 0 Play Time 05:39:18 Cumulative 1133.6 hours Start 2026.01.28 @ 21:46:05 End 2026.04.16 @ 15:13:39 Sessions 2 Manual Loads 0 Difficulty Rogue Special Mode None Game No. 359 Rogue 357 Adventurer 2 Explorer 0 Win Type - Total 87 Types 25/20/19/1/1/1/14/2/1/3 Lore% 98 Gallery% 92 Achievement% 87 Wizard Run 0 Options --------- Layout 0 ASCII 0 Keyboard 1 Movement Numpad Keybinds 0 Fullscreen 1 Font 24/Smallcaps Map View 76x50 Zoom Use 0% Tactical HUD 1 Map Filters NONE Filters NONE Steam 1 RUN: f04dbdf0-16d2-484e-8b3f-ef9079981d35